{"text_format":"1","workbook":"xlsx","n_sheets":3,"sheets":["Formular","Daten","Tabelle1"],"not_rendered":{"charts":0,"images":7,"macros":1,"external_links":0,"defined_names":10,"comments":1,"pivot_tables":0},"unopened":[],"bounds":{"document_bytes":16777216,"sheet_cells":100000,"rows_first":2000,"rows_last":500,"rows_between":2000,"halvings":0,"cell_chars":16384,"cell_head_chars":4096},"cells_cut":0,"cells_raw":0,"read":"whole","date_system":"1900"}

{"sheet":"Formular","index":0,"n_rows":25,"n_cols":17,"rows_kept":25,"cut":false,"hidden":false,"merged":[[43,8,43,10],[44,8,44,10],[45,8,45,10],[46,8,46,10],[47,8,47,10],[48,8,48,10],[49,8,49,10],[50,8,50,10],[51,8,51,10],[45,0,45,1],[45,2,45,7],[45,12,45,13],[2,10,2,14],[3,10,3,14],[4,10,4,14],[15,11,15,14],[15,9,15,10],[43,0,43,1],[43,2,43,7],[43,12,43,13],[44,0,44,1],[44,2,44,7],[44,12,44,13],[41,0,41,1],[41,2,41,7],[41,12,41,13],[42,0,42,1],[42,2,42,7],[42,12,42,13],[39,0,39,1],[39,2,39,7],[39,12,39,13],[40,0,40,1],[40,2,40,7],[40,12,40,13],[39,8,39,10],[40,8,40,10],[41,8,41,10],[42,8,42,10],[37,0,37,1],[37,2,37,7],[37,12,37,13],[38,0,38,1],[38,2,38,7],[38,12,38,13],[38,8,38,10],[35,0,35,1],[35,2,35,7],[35,12,35,13],[36,0,36,1],[36,2,36,7],[36,12,36,13],[35,8,35,10],[36,8,36,10],[37,8,37,10],[33,0,33,1],[33,2,33,7],[33,12,33,13],[34,0,34,1],[34,2,34,7],[34,12,34,13],[31,0,31,1],[31,2,31,7],[31,12,31,13],[32,0,32,1],[32,2,32,7],[32,12,32,13],[31,8,31,10],[32,8,32,10],[33,8,33,10],[34,8,34,10],[29,0,29,1],[29,2,29,7],[29,12,29,13],[30,0,30,1],[30,2,30,7],[30,12,30,13],[27,0,27,1],[27,2,27,7],[27,12,27,13],[28,0,28,1],[28,2,28,7],[28,12,28,13],[27,8,27,10],[28,8,28,10],[29,8,29,10],[30,8,30,10],[22,0,22,1],[22,2,22,7],[22,12,22,13],[23,8,23,10],[22,8,22,10],[25,8,25,10],[26,8,26,10],[24,0,24,1],[24,2,24,7],[24,8,24,10],[24,12,24,13],[25,0,25,1],[25,2,25,7],[25,12,25,13],[26,0,26,1],[26,2,26,7],[26,12,26,13],[23,0,23,1],[23,2,23,7],[23,12,23,13],[21,12,21,13],[21,0,21,1],[21,2,21,7],[15,3,15,8],[17,9,17,14],[17,4,17,7],[21,8,21,10],[0,0,0,14],[10,13,10,14],[2,0,2,1],[2,2,2,6],[3,2,3,6],[4,2,4,6],[6,5,6,9],[6,0,6,4],[7,0,7,4],[7,5,7,9],[8,5,8,8],[10,7,10,8],[46,0,46,1],[47,0,47,1],[48,0,48,1],[46,2,46,7],[46,12,46,13],[47,2,47,7],[47,12,47,13],[48,2,48,7],[48,12,48,13],[49,0,49,1],[49,2,49,7],[49,12,49,13],[50,0,50,1],[50,2,50,7],[50,12,50,13],[51,0,51,1],[51,2,51,7],[51,12,51,13],[52,0,52,1],[52,2,52,7],[52,12,52,13],[53,0,53,1],[53,2,53,7],[53,12,53,13],[54,0,54,1],[54,2,54,7],[54,12,54,13],[52,8,52,10],[53,8,53,10],[54,8,54,10],[55,0,55,1],[55,2,55,7],[55,12,55,13],[56,0,56,1],[56,2,56,7],[56,12,56,13],[57,0,57,1],[57,2,57,7],[57,12,57,13],[55,8,55,10],[56,8,56,10],[57,8,57,10],[58,0,58,1],[58,2,58,7],[58,12,58,13],[59,0,59,1],[59,2,59,7],[59,12,59,13],[60,0,60,1],[60,2,60,7],[60,12,60,13],[58,8,58,10],[59,8,59,10],[60,8,60,10],[61,0,61,1],[61,2,61,7],[61,12,61,13],[62,0,62,1],[62,2,62,7],[62,12,62,13],[63,0,63,1],[63,2,63,7],[63,12,63,13],[61,8,61,10],[62,8,62,10],[63,8,63,10],[64,0,64,1],[64,2,64,7],[64,12,64,13],[65,0,65,1],[65,2,65,7],[65,12,65,13],[66,0,66,1],[66,2,66,7],[66,12,66,13],[64,8,64,10],[65,8,65,10],[66,8,66,10],[67,0,67,1],[67,2,67,7],[67,12,67,13],[68,0,68,1],[68,2,68,7],[68,12,68,13],[69,0,69,1],[69,2,69,7],[69,12,69,13],[67,8,67,10],[68,8,68,10],[69,8,69,10],[70,0,70,1],[70,2,70,7],[70,12,70,13],[71,0,71,1],[71,2,71,7],[71,12,71,13],[72,0,72,1],[72,2,72,7],[72,12,72,13],[70,8,70,10],[71,8,71,10],[72,8,72,10],[73,0,73,1],[73,2,73,7],[73,12,73,13],[74,0,74,1],[74,2,74,7],[74,12,74,13],[75,0,75,1],[75,2,75,7],[75,12,75,13],[73,8,73,10],[74,8,74,10],[75,8,75,10],[76,0,76,1],[76,2,76,7],[76,12,76,13],[77,0,77,1],[77,2,77,7],[77,12,77,13],[78,0,78,1],[78,2,78,7],[78,12,78,13],[76,8,76,10],[77,8,77,10],[78,8,78,10],[79,0,79,1],[79,2,79,7],[79,12,79,13],[80,0,80,1],[80,2,80,7],[80,12,80,13],[81,0,81,1],[81,2,81,7],[81,12,81,13],[79,8,79,10],[80,8,80,10],[81,8,81,10],[82,0,82,1],[82,2,82,7],[82,12,82,13],[83,0,83,1],[83,2,83,7],[83,12,83,13],[84,0,84,1],[84,2,84,7],[84,12,84,13],[82,8,82,10],[83,8,83,10],[84,8,84,10],[85,0,85,1],[85,2,85,7],[85,12,85,13],[86,0,86,1],[86,2,86,7],[86,12,86,13],[87,0,87,1],[87,2,87,7],[87,12,87,13],[85,8,85,10],[86,8,86,10],[87,8,87,10],[88,0,88,1],[88,2,88,7],[88,12,88,13],[89,0,89,1],[89,2,89,7],[89,12,89,13],[90,0,90,1],[90,2,90,7],[90,12,90,13],[88,8,88,10],[89,8,89,10],[90,8,90,10],[96,8,96,10],[91,0,91,1],[91,2,91,7],[91,12,91,13],[92,0,92,1],[92,2,92,7],[92,12,92,13],[93,0,93,1],[93,2,93,7],[93,12,93,13],[91,8,91,10],[92,8,92,10],[93,8,93,10],[24,16,44,16],[97,0,97,1],[97,2,97,7],[97,12,97,13],[98,0,98,1],[98,2,98,7],[98,12,98,13],[99,0,99,1],[99,2,99,7],[99,12,99,13],[97,8,97,10],[98,8,98,10],[99,8,99,10],[94,0,94,1],[94,2,94,7],[94,12,94,13],[95,0,95,1],[95,2,95,7],[95,12,95,13],[96,0,96,1],[96,2,96,7],[96,12,96,13],[94,8,94,10],[95,8,95,10]]}
["Hessischer Kegler- u. Bowling-Verband e.V.  Sektion Bowling",null,null,null,null,null,null,null,null,null,null,null,null,null,null,null,"Die gelben Felder sind auszufüllen"]
["Meldebogen HM 2015 - 2016",null,null,null,null,null,null,null,"Jugend Einzel 1"]
["Leitung:",null,{"$f":"VLOOKUP(I2,event,2,FALSE)","v":"Gabriele Brandes"},null,null,null,null,null,null,"Tel",{"$f":"VLOOKUP(I2,event,5,FALSE)","v":"0162/9640749"}]
[null,null,{"$f":"VLOOKUP(I2,event,3,FALSE)","v":"60599 Frankfurt"},null,null,null,null,null,null,"Fax",{"$f":"VLOOKUP(I2,event,6,FALSE)","v":0}]
[null,null,{"$f":"VLOOKUP(I2,event,4,FALSE)","v":"Völklinger Weg 23"},null,null,null,null,null,null,"E-Mail",{"$f":"VLOOKUP(I2,event,7,FALSE)","v":"gabibrandes@gmx.de"}]
["Startzeiten:"]
[{"$f":"VLOOKUP(I2,event,10,FALSE)","v":"Eschersheim"},null,null,null,null,{"$f":"VLOOKUP(I2,event,12,FALSE)","v":"2016-02-14"},null,null,null,null,{"$f":"IF(ISERROR(VLOOKUP(I2,event,14,FALSE)),\"\",VLOOKUP(I2,event,14,FALSE))","v":"11:00:00"},{"$f":"IF(ISERROR(VLOOKUP(I2,event,15,FALSE)),\"\",VLOOKUP(I2,event,15,FALSE))","v":"00:00:00"},{"$f":"IF(ISERROR(VLOOKUP(I2,event,16,FALSE)),\"\",VLOOKUP(I2,event,16,FALSE))","v":"*"},{"$f":"IF(ISERROR(VLOOKUP(I2,event,17,FALSE)),\"\",VLOOKUP(I2,event,17,FALSE))","v":"*"},{"$f":"IF(ISERROR(VLOOKUP(I2,event,18,FALSE)),\"\",VLOOKUP(I2,event,18,FALSE))","v":"*"}]
[{"$f":"VLOOKUP(I2,event,11,FALSE)","v":"00:00:00"},null,null,null,null,{"$f":"VLOOKUP(I2,event,13,FALSE)","v":"2016-02-14"},null,null,null,null,{"$f":"IF(ISERROR(VLOOKUP(I2,event,19,FALSE)),\"\",VLOOKUP(I2,event,19,FALSE))","v":"00:00:00"},{"$f":"IF(ISERROR(VLOOKUP(I2,event,20,FALSE)),\"\",VLOOKUP(I2,event,20,FALSE))","v":"00:00:00"},{"$f":"IF(ISERROR(VLOOKUP(I2,event,21,FALSE)),\"\",VLOOKUP(I2,event,21,FALSE))","v":"00:00:00"},{"$f":"IF(ISERROR(VLOOKUP(I2,event,22,FALSE)),\"\",VLOOKUP(I2,event,22,FALSE))","v":"00:00:00"},{"$f":"IF(ISERROR(VLOOKUP(I2,event,23,FALSE)),\"\",VLOOKUP(I2,event,23,FALSE))","v":"00:00:00"}]
["Meldeschluss:",null,null,null,null,{"$f":"VLOOKUP(I2,event,8,FALSE)","v":"2016-01-31"}]
["(bitte den vollständig ausgefüllten Meldebogen an die Leitung senden - Adresse obenstehend)"]
["Wir melden",null,null,null,null,"Starts á ",null,{"$f":"VLOOKUP(I2,event,9,FALSE)","v":20},null,null,"Gesamtbetrag von ",null,null,{"$f":"H11*D11","v":0}]
[]
["Bitte den Gesamtbetrag an die",null,null,null,null,{"$f":"VLOOKUP(I2,event,26,FALSE)","v":"HKBV e.V. - Sektion Bowling   Sparkasse Dieburg"},null,null,null,null,null,null,null,"überweisen und"]
["und Kopie  d. Überweisungsbeleg",null,null,null,null,"IBAN: ",null,{"$f":"VLOOKUP(I2,event,24,FALSE)","v":"DE 28 5085 2651 0136 0071 84"}]
["der Anmeldung beilegen.",null,null,null,null,"BIC:    ",null,{"$f":"VLOOKUP(I2,event,25,FALSE)","v":"HELADEF1DIE"}]
["Verein / Club:",null,null,"",null,null,null,null,null,"Gemeldet von"]
[]
["Kontktdaten:",null,null,"Tel.:",null,null,null,null,"Email:"]
[]
[null,null,null,null,null,null,null,null,null,null,"wenn Startzeit beliebig dann * eingeben"]
[]
["EDV-Nr.",null,"Name",null,null,null,null,null,"Vorname",null,null,"RL","Altersgruppe",null,"gewünschte \nStartzeit"]
[]
[]
[null,null,null,null,null,null,null,null,null,null,null,null,null,null,null,null,"Bei Eingabe einer EDV-Nr in Spalte 1 ab Zeile 23 \nund drücken der Taste Enter werden die dazu gehörigen Spielerdaten eingesetzt.\n\nLinkes Auswahlfeld: Es kann mit der EDV-Nr gesucht werden. Die dazu gehörigen Spielerdaten werden angezeigt und nach drücken der Taste Enter nach dem letzten Datensatz eingefügt.\n\nRechtes Auswahlfeld: Es kann mit dem Nachnamen gesucht werden. Die dazu gehörigen Spielerdaten werden angezeigt und nach Drücken der Taste Enter  nach dem letzten Datensatz eingefügt.\n\nIm Bereich der Spielerdaten werden keine Formeln mehr verwand.\n\n\n"]

{"sheet":"Daten","index":1,"n_rows":69,"n_cols":26,"rows_kept":69,"cut":false,"hidden":false,"merged":[]}
[null,null,null,null,null,null,null,null,null,null,null,null,null,"Startzeiten Vorlauf",null,null,null,null,"Startzeiten ab 2 Runde"]
["Event","Leitung","ort","Strasse","Tel","Fax","E-Mail","meldschluß","startgebühr","spielort1","spielort2","Von","Bis","start1","start2","start3","start4","start5","start6","start7","start8","start9",null,"Iban","Bic","Bank"]
["Trio Damen und Herren 3","Edgar Müller","63457 Hanau","Wolfstr. 10 ","01708013807",null,"eddy.mueller@t-online.de",{"$f":"M3-14","v":"2015-11-01"},54,"Mühlheim","Wetzlar","2015-11-14","2015-11-15","09:00:00","12:30:00","16:00:00","*","*",1,1.0416666666666701,1.0833333333333299,1.125,1.1666666666666701,"DE 28 5085 2651 0136 0071 84","HELADEF1DIE","HKBV e.V. - Sektion Bowling   Sparkasse Dieburg"]
["Damen und Herren Doppel 2","Edgar Müller","63457 Hanau","Wolfstr. 10 ","01708013807",null,"eddy.mueller@t-online.de",{"$f":"M4-14","v":"2015-12-27"},36,"Eschersheim","Rebstock","2016-01-09","2016-01-10","09:00:00","12:40:00","16:20:00","*","*",null,null,null,null,null,"DE 28 5085 2651 0136 0071 84","HELADEF1DIE","HKBV e.V. - Sektion Bowling   Sparkasse Dieburg"]
["Seniorinnen, Senioren und Versehrte Einzel 1","Siedentopf Peter","61476 Kronberg","Talweg 1","06173 5718","06173 5718","siedentopfgp@freenet.de",{"$f":"M5-7","v":"2016-01-17"},18,"Rebstock","Eschersheim","2016-01-23","2016-01-24","09:00:00","12:40:00","16:20:00","*"," ",null,null,null,null,null,"DE 28 5085 2651 0136 0071 84","HELADEF1DIE","HKBV e.V. - Sektion Bowling   Sparkasse Dieburg"]
["Jugend Einzel 1","Gabriele Brandes","60599 Frankfurt","Völklinger Weg 23","0162/9640749",null,"gabibrandes@gmx.de","2016-01-31",20,"Eschersheim",null,"2016-02-14","2016-02-14","11:00:00",null,"*","*","*",null,null,null,null,null,"DE 28 5085 2651 0136 0071 84","HELADEF1DIE","HKBV e.V. - Sektion Bowling   Sparkasse Dieburg"]
["Junioren Einzel 1","Edgar Müller","63457 Hanau","Wolfstr. 10 ","01708013807",null,"eddy.mueller@t-online.de","2016-01-31",18,"Eschersheim",null,"2016-02-14","2016-02-14","10:00:00",null,"*","*","*",null,null,null,null,null,"DE 28 5085 2651 0136 0071 84","HELADEF1DIE","HKBV e.V. - Sektion Bowling   Sparkasse Dieburg"]
["Seniorinnen, Senioren Trio 3","Siedentopf Peter","61476 Kronberg","Talweg 1","06173 5718","06173 5718","siedentopfgp@freenet.de",{"$f":"M8-7","v":"2016-02-28"},54,"Rebstock","Eschersheim","2016-03-05","2016-03-06","09:30:00","14:15:00","*","*","*","09:30:00","14:15:00",null,null,null,"DE 28 5085 2651 0136 0071 84","HELADEF1DIE","HKBV e.V. - Sektion Bowling   Sparkasse Dieburg"]
["Mixed Doppel 2","Edgar Müller","63457 Hanau","Wolfstr. 10 ","01708013807",null,"eddy.mueller@t-online.de","2016-03-06",36,"Eschersheim","Langen","2016-03-19","2016-03-20","09:00:00","12:40:00","16:20:00","*","*",null,null,null,null,null,"DE 28 5085 2651 0136 0071 84","HELADEF1DIE","HKBV e.V. - Sektion Bowling   Sparkasse Dieburg"]
["Einzel Damen und Herren 1","Edgar Müller","63457 Hanau","Wolfstr. 10 ","01708013807",null,"eddy.mueller@t-online.de","2016-03-27",18,"Wiesbaden","Mühlheim","2016-04-09","2016-04-10","09:00:00","12:45:00","16:25:00","*","*",null,null,null,null,null,"DE 28 5085 2651 0136 0071 84","HELADEF1DIE","HKBV e.V. - Sektion Bowling   Sparkasse Dieburg"]
["Ranglistenturnier 1","Tom Pfaff","60599 Frankfurt","Schweinfurter Weg 74","0179 - 4529279",null,"ranglistenturnier@web.de",{"$f":"L11-7","v":"2015-10-24"},35,"Rebstock","Rebstock","2015-10-31","2015-11-01","09:00:00","12:45:00","16:25:00","*","*","09:00:00",null,null,null,null,null,null,"Bezahlung vor Ort"]
[]
[]
[]
[]
[null,null,null,null,null,null,null,null," "]
[]
[]
["Club"]
["AAN Schwanheim"]
["ABV Frankfurt"]
["BC 2000 Aschaffenburg"]
["BC 2005 Frankfurt"]
["BC 67 Hanau"]
["BC 75 Fortuna"]
["BC 83 Kelsterbach"]
["BC 89 Olympia Rüsselsheim"]
["BC Bad Hersfeld"]
["BC Blau-Gelb Frankfurt"]
["BC Darmstadt"]
["BC Devils"]
["BC Eberstadt"]
["BC Fusion Langen e.V."]
["BC Gießen"]
["BC Höchst"]
["BC Kellerstrikers"]
["BC Langen 83"]
["BC Mühlheim"]
["BC Nidda Ffm"]
["BC Nord West Ffm"]
["BC Power Girls"]
["BC Rebstock Ffm"]
["BC Wiesbaden"]
["Bowlingsportclub Bensheim 08 e.V"]
["BSV Dieburg"]
["BSV Oberrad"]
["BV 1987 Frankfurt"]
["BV 77 Frankfurt"]
["BV Delphi Frankfurt"]
["BV Frankfurt Süd"]
["BV Oranje Frankfurt"]
["BV Römer Frankfurt"]
["BV Taifun Fulda"]
["BW Bornheim"]
["City Bowler Kassel"]
["Citystrikers"]
["Condor Steinheim"]
["Cosmos Wiesbaden"]
["Finale Kassel"]
["FSV Frankfurt"]
["FTG-BC Frankfurt"]
["I-Bahn SC 34 Ffm"]
["Jugend Bowling Club Hanau"]
["KBC Kelsterbach"]
["Mainhattan Bowlers Frankfurt"]
["Phönix Frankfurt"]
["SBV"]
["SW Friedberg"]
["TSV 1860 Hanau"]

{"sheet":"Tabelle1","index":2,"n_rows":1276,"n_cols":12,"rows_kept":1276,"cut":false,"hidden":false,"merged":[]}
["suchen","EDV-Nr","Nachname","Vorname","Alertskl","Rangl","Club","Verein",null,null,"Jun",8735]
[]
[{"$f":"C3&\" \"&D3","v":"Stichling Christopher"},218,"Stichling","Christopher","Herren","D","Phönix Frankfurt","BV 95 Phönix Frankfurt e.V."]
["Hemmelmann Dirk",302,"Hemmelmann","Dirk","Herren","D","ABV Frankfurt","ABV Frankfurt",null,null,"Damen"]
["Maurer Toni",545,"Maurer","Toni","Sen C",null,"FSV Frankfurt","FSV Frankfurt",null,null,"Herren"]
["Polte Ulrike",960,"Polte","Ulrike","Damen",0,"ABV Frankfurt","ABV Frankfurt",null,null,"Jug A"]
["Schröder Timo",1051,"Schröder","Timo","Herren","A","Finale Kassel","BSV Kassel",null,null,"Jug B"]
["Gabel Janine-Manuela",1447,"Gabel","Janine-Manuela","Damen","A","BV 77 Frankfurt","BV 77 Frankfurt",null,null,"Jug C"]
["Jung Benjamin",2217,"Jung","Benjamin","Jug A","D","Phönix Frankfurt","BV 95 Phönix Frankfurt e.V.",null,null,"Sen A"]
["Rolli Maik",4024,"Rolli","Maik","Herren","B","Phönix Frankfurt","BV 95 Phönix Frankfurt e.V.",null,null,"Sen B"]
["Rocke Marcel",5790,"Rocke","Marcel","Herren","A","BV Römer Frankfurt","BV Römer Frankfurt",null,null,"Sen C"]
["Kehr Marco",6113,"Kehr","Marco","Herren","A","BC 67 Hanau","BV Hanau",null,null,"Versehrte 1"]
["Gollnow Sabrina",6347,"Gollnow","Sabrina","Damen","D","BC Gießen","1. BSV Gießen",null,null,"Versehrte 2"]
["Moritz Ramon",6432,"Moritz","Ramon","Herren","D","BC Gießen","1. BSV Gießen",null,null,"Jun"]
["Prell Patrick",7726,"Prell","Patrick","Herren","A","ABV Frankfurt","ABV Frankfurt"]
["Ackermann Brigitte",8001,"Ackermann","Brigitte","Sen B","C","ABV Frankfurt","ABV Frankfurt"]
["Ackermann Jürgen",8002,"Ackermann","Jürgen","Herren","C","BSV Dieburg","1. BSV Dieburg e.V. 1992"]
["Adkins Laressa",8005,"Adkins","Laressa","Damen","B","BV 77 Frankfurt","BV 77 Frankfurt"]
["Alabiso Luana",8010,"Alabiso","Luana","Jug A","D","BC Wiesbaden","BC Wiesbaden e.V."]
["Albert Markus",8012,"Albert","Markus","Herren","A","BC Fusion Langen e.V.","BC Fusion Langen e.V."]
["Albert Stefan",8013,"Albert","Stefan","Sen A",null,"Mainhattan Bowlers Frankfurt","Mainhattan Bowlers Frankfurt"]
["Amler Patrick",8017,"Amler","Patrick","Jug A","F","Condor Steinheim","BV Hanau"]
["Ammer Frank",8018,"Ammer","Frank","Sen C","D","FTG-BC Frankfurt","FTG 1847 Frankfurt"]
["Andersch Andreas",8020,"Andersch","Andreas","Herren",null,"BC Kellerstrikers","BC Keller Strikers Dillenburg e.V."]
["Anna Klaus",8021,"Anna","Klaus","Sen B","F","BC 89 Olympia Rüsselsheim","TuS Rüsselsheim"]
["Anna Ursula",8022,"Anna","Ursula","Sen B","F","BC 89 Olympia Rüsselsheim","TuS Rüsselsheim"]
["Appel Rolf",8024,"Appel","Rolf","Sen A","A","BC 2005 Frankfurt","BV Frankfurt West"]
["Armbrüster Alfred",8026,"Armbrüster","Alfred","Sen B","C","BC Rebstock Ffm","BV Rebstock"]
["Aufschläger Jochen",8029,"Aufschläger","Jochen","Herren","B","ABV Frankfurt","ABV Frankfurt"]
["Aufschläger Ulrike",8030,"Aufschläger","Ulrike","Damen","B","FSV Frankfurt","FSV Frankfurt"]
["Aust Karsten",8032,"Aust","Karsten","Herren","A","BC Blau-Gelb Frankfurt","BV Blau-Gelb Frankfurt e.V."]
["Aust Michael",8033,"Aust","Michael","Sen A","D","AAN Schwanheim","KBVS Schwanheim"]
["Auth Corinna",8034,"Auth","Corinna","Damen","C","BC Blau-Gelb Frankfurt","BV Blau-Gelb Frankfurt e.V."]
["Auth Ralf",8035,"Auth","Ralf","Herren","C","BC Blau-Gelb Frankfurt","BV Blau-Gelb Frankfurt e.V."]
["Baier Michael",8037,"Baier","Michael","Sen A","B","Mainhattan Bowlers Frankfurt","Mainhattan Bowlers Frankfurt"]
["Tubklay Sununta",8038,"Tubklay","Sununta","Damen","D","BC 2005 Frankfurt","BV Frankfurt West"]
["Baker Richard",8039,"Baker","Richard","Sen A","A","BC Gießen","1. BSV Gießen"]
["Bartaska Jonas",8043,"Bartaska","Jonas","Sen B",0,"TSV 1860 Hanau","BV Hanau"]
["Barth Dietmar",8044,"Barth","Dietmar","Sen B",null,"Mainhattan Bowlers Frankfurt","Mainhattan Bowlers Frankfurt"]
["Barth Jeannine",8045,"Barth","Jeannine","Jun","A","BV 1987 Frankfurt","BV 1987 Frankfurt"]
["Barth Marcel",8046,"Barth","Marcel","Herren","B","BV 1987 Frankfurt","BV 1987 Frankfurt"]
["Bauer Jürgen",8051,"Bauer","Jürgen","Sen A","A","Condor Steinheim","BV Hanau"]
["Baur Winfried",8054,"Baur","Winfried","Sen B",null,"BV 77 Frankfurt","BV 77 Frankfurt"]
["Bayer Harry",8055,"Bayer","Harry","Sen B",0,"BC 75 Fortuna","BV Hanau"]
["Bayer Julia",8056,"Bayer","Julia","Damen",null,"Condor Steinheim","BV Hanau"]
["Bayer Peter",8057,"Bayer","Peter","Sen A",0,"BC 75 Fortuna","BV Hanau"]
["Bayer Thomas",8058,"Bayer","Thomas","Herren","E","Condor Steinheim","BV Hanau"]
["Becht Franz",8060,"Becht","Franz","Sen C",null,"BC Höchst","BV Höchst e.V."]
["Beck Dietmar",8062,"Beck","Dietmar","Sen B",0,"BC 2000 Aschaffenburg","1. BV Aschaffenburg e.V."]
["Beckel Martina",8064,"Beckel","Martina","Sen A","A","BV 77 Frankfurt","BV 77 Frankfurt"]
["Becker Elke",8068,"Becker","Elke","Sen C","D","BC Gießen","1. BSV Gießen"]
["Becker-Daschmann Dagmar",8072,"Becker-Daschmann","Dagmar","Damen","B","BC Gießen","1. BSV Gießen"]
["Beissler Andrea",8077,"Beissler","Andrea","Damen",null,"BC 2000 Aschaffenburg","1. BV Aschaffenburg e.V."]
["Belgar Irene",8078,"Belgar","Irene","Jun","B","BC Nidda Ffm","BV Nidda Frankfurt"]
["Belgar Rene",8080,"Belgar","Rene","Herren","A","BC Nidda Ffm","BV Nidda Frankfurt"]
["Bellanti Vincenzo",8081,"Bellanti","Vincenzo","Herren",null,"BC Rebstock Ffm","BV Rebstock"]
["Berardi Danny",8086,"Berardi","Danny","Sen B","A","BC 2000 Aschaffenburg","1. BV Aschaffenburg e.V."]
["Berardi Danny",8087,"Berardi","Danny","Jun","C","BC 2000 Aschaffenburg","1. BV Aschaffenburg e.V."]
["Berardi Sophia",8088,"Berardi","Sophia","Jug A","F","BC Wiesbaden","BC Wiesbaden e.V."]
["Berardi Stacy",8089,"Berardi","Stacy","Sen A","E","BC 2000 Aschaffenburg","1. BV Aschaffenburg e.V."]
["Bernhardt Klaus",8090,"Bernhardt","Klaus","Herren","A","I-Bahn SC 34 Ffm","BV City Frankfurt"]
["Besser Beate",8091,"Besser","Beate","Damen","D","BC 2005 Frankfurt","BV Frankfurt West"]
["Betz Renate",8092,"Betz","Renate","Sen A","D","TSV 1860 Hanau","BV Hanau"]
["Bien Martin",8093,"Bien","Martin","Sen B","D","BV Oranje Frankfurt","BV Oranje Frankfurt"]
["Bienert Petra",8095,"Bienert","Petra","Sen B","D","BC Blau-Gelb Frankfurt","BV Blau-Gelb Frankfurt e.V."]
["Bier Harald",8096,"Bier","Harald","Sen A","D","BC Darmstadt","1. BSV Darmstadt 1973"]
["Biersack Karl",8097,"Biersack","Karl","Sen A",null,"BC Rebstock Ffm","BV Rebstock"]
[{"$f":"C68&\" \"&D68","v":"Bigall Eileen"},8098,"Bigall","Eileen","Sen A","D","BSV Oberrad","BSV 1990 Oberrad"]
["Bigall Iris",8099,"Bigall","Iris","Damen",null,"ABV Frankfurt","BSV 1990 Oberrad"]
["Bigall Marcel",8100,"Bigall","Marcel","Herren","B","BSV Oberrad","BSV 1990 Oberrad"]
["Bigall Rene",8101,"Bigall","Rene","Herren","A","BSV Oberrad","BSV 1990 Oberrad"]
["Bigall Volker",8102,"Bigall","Volker","Herren","B","BSV Oberrad","BSV 1990 Oberrad"]
["Bileci Nunzio",8103,"Bileci","Nunzio","Sen A",0,"BC Mühlheim","BV Mühlheim"]
["Blank Franz",8107,"Blank","Franz","Sen A",null,"BC 2000 Aschaffenburg","1. BV Aschaffenburg e.V."]
["Blickhan Gaby",8108,"Blickhan","Gaby","Sen B","D","FSV Frankfurt","FSV Frankfurt"]
["Schmidt Julia",8110,"Schmidt","Julia","Damen","C","FSV Frankfurt","FSV Frankfurt"]
["Blickhan Richard",8111,"Blickhan","Richard","Sen B","C","BV Frankfurt Süd","BV Frankfurt Süd"]
["Block Alexander",8112,"Block","Alexander","Jun","B","BC Nidda Ffm","BV Nidda Frankfurt"]
["Bloedow Helene",8116,"Bloedow","Helene","Sen B",0,"BC 89 Olympia Rüsselsheim","TuS Rüsselsheim"]
["Bodem Andreas",8117,"Bodem","Andreas","Sen A","A","BC 67 Hanau","BV Hanau"]
["Bodem Anja",8118,"Bodem","Anja","Damen",null,"Condor Steinheim","BV Hanau"]
["Bodis Karin",8119,"Bodis","Karin","Sen B","D","TSV 1860 Hanau","BV Hanau"]
["Böhne Thomas",8124,"Böhne","Thomas","Herren","C","BC Rebstock Ffm","BV Rebstock"]
["Bohrmann Berthold",8125,"Bohrmann","Berthold","Sen A","C","BC Wiesbaden","BC Wiesbaden e.V."]
["Bohrmann Tim",8126,"Bohrmann","Tim","Herren","C","BC Wiesbaden","BC Wiesbaden e.V."]
["Bolzmann Dagmar",8127,"Bolzmann","Dagmar","Sen C","E","SW Friedberg","Schwarz Weiss Friedberg"]
["Bonnert Jürgen",8129,"Bonnert","Jürgen","Herren","D","Mainhattan Bowlers Frankfurt","Mainhattan Bowlers Frankfurt"]
["Born Frank",8130,"Born","Frank","Herren","B","SBV","BV City Frankfurt"]
["Born Wilhelm",8131,"Born","Wilhelm","Jun","D","Mainhattan Bowlers Frankfurt","Mainhattan Bowlers Frankfurt"]
["Brandes Gabriele",8138,"Brandes","Gabriele","Sen A","B","KBC Kelsterbach","KBV Kelsterbach"]
["Brandes Matthias",8139,"Brandes","Matthias","Sen A","B","KBC Kelsterbach","KBV Kelsterbach"]
["Braun Hartmut",8140,"Braun","Hartmut","Sen B","D","BC Gießen","1. BSV Gießen"]
["Braut Thomas",8143,"Braut","Thomas","Sen A","C","BV Delphi Frankfurt","BV Delphi Frankfurt e.V."]
["Bretthauer Ralf",8147,"Bretthauer","Ralf","Sen A","C","Condor Steinheim","BV Hanau"]
["Breuers Edda",8150,"Breuers","Edda","Sen C","D","BC Höchst","BV Höchst e.V."]
["Brookes-Kiefer Elaine",8153,"Brookes-Kiefer","Elaine","Sen B","D","BC 83 Kelsterbach","KBV Kelsterbach"]
["Brötz Heinz",8155,"Brötz","Heinz","Sen B","E","BV 77 Frankfurt","BV 77 Frankfurt"]
["Brückner Achim",8156,"Brückner","Achim","Sen A","D","BC 75 Fortuna","BV Hanau"]
["Brunner Waldemar",8158,"Brunner","Waldemar","Sen A","C","AAN Schwanheim","KBVS Schwanheim"]
["Bucsa Andone",8163,"Bucsa","Andone","Herren","D","BC Wiesbaden","BC Wiesbaden e.V."]
["Buhl Georg",8166,"Buhl","Georg","Sen C","D","Condor Steinheim","BV Hanau"]
["Buhl Martin",8167,"Buhl","Martin","Herren","B","Condor Steinheim","BV Hanau"]
["Burger Kurt",8168,"Burger","Kurt","Sen A","B","BC Rebstock Ffm","BV Rebstock"]
["Burgess Mark",8169,"Burgess","Mark","Herren",0,"BC 2000 Aschaffenburg","1. BV Aschaffenburg e.V."]
["Buse Susanne",8172,"Buse","Susanne","Damen","D","BV Römer Frankfurt","BV Römer Frankfurt"]
["Buskowiak Thomas",8173,"Buskowiak","Thomas","Sen B","B","BC 67 Hanau","BV Hanau"]
["Büttner Gabriele",8174,"Büttner","Gabriele","Sen A","E","BC Nord West Ffm","BSV Nord West Frankfurt"]
["Büttner Stefan",8175,"Büttner","Stefan","Sen A",null,"BC Nord West Ffm","BSV Nord West Frankfurt"]
["Cabrera Tudela Antonio",8176,"Cabrera Tudela","Antonio","Sen C","D","BC 83 Kelsterbach","KBV Kelsterbach"]
["Caldwell Philipp",8177,"Caldwell","Philipp","Jug A","D","Phönix Frankfurt","BV 95 Phönix Frankfurt e.V."]
["Caldwell Rita",8178,"Caldwell","Rita","Sen A","D","Phönix Frankfurt","BV 95 Phönix Frankfurt e.V."]
["Caldwell Thomas",8179,"Caldwell","Thomas","Sen A","D","Phönix Frankfurt","BV 95 Phönix Frankfurt e.V."]
["Callsen Thomas",8181,"Callsen","Thomas","Herren","D","Citystrikers","BC Citystrikers"]
["Canady David",8183,"Canady","David","Herren","A","Finale Kassel","BSV Kassel"]
["Cano Sanchis Rita",8184,"Cano Sanchis","Rita","Sen B",0,"Condor Steinheim","BV Hanau"]
["Carl Britta",8186,"Carl","Britta","Damen","D","BC 2000 Aschaffenburg","1. BV Aschaffenburg e.V."]
["Carter Anthony",8187,"Carter","Anthony","Sen A","E","AAN Schwanheim","KBVS Schwanheim"]
["Castro Ferdinand",8188,"Castro","Ferdinand","Herren",null,"BC Nidda Ffm","BV Nidda Frankfurt"]
["Chalkidis Anastasios",8190,"Chalkidis","Anastasios","Sen A","A","BC 83 Kelsterbach","KBV Kelsterbach"]
["Collmann Dieter",8196,"Collmann","Dieter","Sen B","B","Finale Kassel","BSV Kassel"]
["Comunale Antonio",8198,"Comunale","Antonio","Sen C","C","BC Rebstock Ffm","BV Rebstock"]
["Conrad Martin",8199,"Conrad","Martin","Sen A","D","BV Frankfurt Süd","BV Frankfurt Süd"]
["Curti Michael",8204,"Curti","Michael","Herren","A","I-Bahn SC 34 Ffm","BV City Frankfurt"]
["Custodio-Simon Elena",8205,"Custodio-Simon","Elena","Sen C","D","AAN Schwanheim","KBVS Schwanheim"]
["Dähler Mark",8208,"Dähler","Mark","Herren","A","ABV Frankfurt","ABV Frankfurt"]
["Daschmann Helmut",8209,"Daschmann","Helmut","Sen A","C","BC Gießen","1. BSV Gießen"]
["Meegdes Silvia",8211,"Meegdes","Silvia","Damen","D","BC Langen 83","BSV Langen 83"]
["Daute Wolfgang",8212,"Daute","Wolfgang","Herren",0,"BC Langen 83","BSV Langen 83"]
["Day Claudia",8215,"Day","Claudia","Sen A","D","BC 2005 Frankfurt","BV Frankfurt West"]
["Dengs Heinz",8220,"Dengs","Heinz","Sen A",0,"BV 1987 Frankfurt","BV 1987 Frankfurt"]
["Dennechaud Renate",8221,"Dennechaud","Renate","Sen B","D","KBC Kelsterbach","KBV Kelsterbach"]
[{"$f":"C132&\" \"&D132","v":"Deppisch Günter"},8223,"Deppisch","Günter","Sen C","D","BC Devils","BV Oberstedtener Devils e.V."]
["Deppisch Sandra",8224,"Deppisch","Sandra","Damen","D","BC Devils","BV Oberstedtener Devils e.V."]
["Desiderio Giovanni",8225,"Desiderio","Giovanni","Sen A","B","BC 83 Kelsterbach","KBV Kelsterbach"]
["Deters Susanne",8227,"Deters","Susanne","Jun","B","FTG-BC Frankfurt","FTG 1847 Frankfurt"]
["Devine David",8228,"Devine","David","Sen B",null,"BC Langen 83","BSV Langen 83"]
["Di Gregorio Gaetano",8230,"Di Gregorio","Gaetano","Sen C","E","AAN Schwanheim","KBVS Schwanheim"]
["Diegelmann Axel",8233,"Diegelmann","Axel","Herren","D","BV Taifun Fulda","BV Taifun Fulda"]
["Diehl Claudia",8235,"Diehl","Claudia","Sen A",0,"BC Wiesbaden","BC Wiesbaden e.V."]
["Diehl Johann",8237,"Diehl","Johann","Sen A","C","BC Wiesbaden","BC Wiesbaden e.V."]
["Dietrich Dieter",8243,"Dietrich","Dieter","Sen B","C","BC Langen 83","BSV Langen 83"]
["Dietrich Timo",8244,"Dietrich","Timo","Jun","D","BC Langen 83","BSV Langen 83"]
["Dietz Christian",8245,"Dietz","Christian","Jun","B","BC Nidda Ffm","BV Nidda Frankfurt"]
["Dillenseger Pascal",8249,"Dillenseger","Pascal","Herren",0,"Mainhattan Bowlers Frankfurt","Mainhattan Bowlers Frankfurt"]
["Doering Wolfgang",8252,"Doering","Wolfgang","Sen C","D","BV 1987 Frankfurt","BV 1987 Frankfurt"]
["Döll Angela",8253,"Döll","Angela","Sen A","D","BC Devils","BV Oberstedtener Devils e.V."]
["Doll-Dillenseger Kerstin",8254,"Doll-Dillenseger","Kerstin","Sen B","D","Mainhattan Bowlers Frankfurt","Mainhattan Bowlers Frankfurt"]
["Domesle Christine",8255,"Domesle","Christine","Damen","D","BC Devils","BV Oberstedtener Devils e.V."]
["Dorfmeister Daniel",8258,"Dorfmeister","Daniel","Jun","B","Bowlingsportclub Bensheim 08 e.V","Bowlingsportclub Bensheim 08 e.V"]
["Dorfmeister Gabriele",8259,"Dorfmeister","Gabriele","Sen A","B","FTG-BC Frankfurt","FTG 1847 Frankfurt"]
["Drössel Andrew",8260,"Drössel","Andrew","Jug A","D","BC Wiesbaden","BC Wiesbaden e.V."]
["Druschel Siegfried",8261,"Druschel","Siegfried","Sen B","D","BC 67 Hanau","BV Hanau"]
["Duki Hildegard",8263,"Duki","Hildegard","Sen B","E","BC 2005 Frankfurt","BV Frankfurt West"]
["Duplois Petra",8264,"Duplois","Petra","Sen B","B","KBC Kelsterbach","KBV Kelsterbach"]
["Elsenberger Horst",8270,"Elsenberger","Horst","Sen A","A","BC Wiesbaden","BC Wiesbaden e.V."]
["Emmerich Wolfgang",8272,"Emmerich","Wolfgang","Sen C","B","ABV Frankfurt","ABV Frankfurt"]
["Engisch Erhard",8276,"Engisch","Erhard","Sen C",null,"BC 83 Kelsterbach","KBV Kelsterbach"]
["Erhardt Alexander",8277,"Erhardt","Alexander","Herren",null,"BC Kellerstrikers","BC Keller Strikers Dillenburg e.V."]
["Eylardi Achim",8278,"Eylardi","Achim","Herren",0,"FTG-BC Frankfurt","FTG 1847 Frankfurt"]
["Eylardi Michaela",8279,"Eylardi","Michaela","Sen A","B","FTG-BC Frankfurt","FTG 1847 Frankfurt"]
["Färber Klaus",8283,"Färber","Klaus","Sen C","C","BC 75 Fortuna","BV Hanau"]
["Farmer Francis",8284,"Farmer","Francis","Sen A",0,"BC Langen 83","BSV Langen 83"]
["Farmer Mandy-Sharon",8285,"Farmer","Mandy-Sharon","Jun","E","BSV Dieburg","1. BSV Dieburg e.V. 1992"]
["Fauerbach Matthias",8287,"Fauerbach","Matthias","Herren","D","SBV","BV City Frankfurt"]
["Feller Thomas",8295,"Feller","Thomas","Sen A","C","BC Wiesbaden","BC Wiesbaden e.V."]
["Ferenczi Stephan",8296,"Ferenczi","Stephan","Herren","B","BC 67 Hanau","BV Hanau"]
["Fernandez Andres",8297,"Fernandez","Andres","Sen C",0,"BC 67 Hanau","BV Hanau"]
["Fink Peter",8304,"Fink","Peter","Sen C",0,"BC Eberstadt","1. BSV Eberstadt"]
["Fink Ulrike",8305,"Fink","Ulrike","Sen B",null,"BC Höchst","BV Höchst e.V."]
["Firmbach Volker",8307,"Firmbach","Volker","Sen C","D","BC Blau-Gelb Frankfurt","BV Blau-Gelb Frankfurt e.V."]
["Fischer Alexander",8309,"Fischer","Alexander","Jun","A","BC Nidda Ffm","BV Nidda Frankfurt"]
["Fischer Alfred",8310,"Fischer","Alfred","Sen C",0,"BC Höchst","BV Höchst e.V."]
["Fischer Ingeborg",8312,"Fischer","Ingeborg","Sen A","D","BC Höchst","BV Höchst e.V."]
["Fischer Peter",8315,"Fischer","Peter","Sen A","C","BC Langen 83","BSV Langen 83"]
["Fischer Peter",8316,"Fischer","Peter","Sen A","C","Cosmos Wiesbaden","BC Cosmos Wiesbaden"]
["Fischer Rainer",8318,"Fischer","Rainer","Sen A","B","BC Darmstadt","1. BSV Darmstadt 1973"]
["Fischer Thomas",8319,"Fischer","Thomas","Sen A","D","SW Friedberg","Schwarz Weiss Friedberg"]
["Fischer Werner",8320,"Fischer","Werner","Sen A","D","BC 67 Hanau","BV Hanau"]
["Fischer Yvonne",8321,"Fischer","Yvonne","Damen","B","BV Römer Frankfurt","BV Römer Frankfurt"]
["Flaig Achim",8322,"Flaig","Achim","Sen A",null,"BC Darmstadt","1. BSV Darmstadt 1973"]
["Flassig Roland",8323,"Flassig","Roland","Sen A","B","BC Höchst","BV Höchst e.V."]
["Flemming Claus-Dieter",8324,"Flemming","Claus-Dieter","Sen C",0,"BC Rebstock Ffm","BV Rebstock"]
["Förster Gerd",8326,"Förster","Gerd","Sen B","D","BC Rebstock Ffm","BV Rebstock"]
["Förster Carola",8330,"Förster","Carola","Sen A","E","BC Blau-Gelb Frankfurt","BV Blau-Gelb Frankfurt e.V."]
["Forster Florian",8332,"Forster","Florian","Herren",0,"ABV Frankfurt","ABV Frankfurt"]
["Forster Fred",8334,"Forster","Fred","Sen B","C","BC Nidda Ffm","BV Nidda Frankfurt"]
["Forster Fred-Fabian",8335,"Forster","Fred-Fabian","Herren",null,"ABV Frankfurt","ABV Frankfurt"]
["Förster Heinz",8336,"Förster","Heinz","Sen B","D","BC Blau-Gelb Frankfurt","BV Blau-Gelb Frankfurt e.V."]
["Forster Petra",8337,"Forster","Petra","Sen A","E","BC Nidda Ffm","BV Nidda Frankfurt"]
["Förster Petra",8338,"Förster","Petra","Sen A","C","Mainhattan Bowlers Frankfurt","Mainhattan Bowlers Frankfurt"]
["Frank Sabine",8340,"Frank","Sabine","Sen A",null,"BC Devils","BV Oberstedtener Devils e.V."]
["Franke Helmut",8341,"Franke","Helmut","Sen B","F","BC Bad Hersfeld","BC Bad Hersfeld"]
["Franzmann Bert",8343,"Franzmann","Bert","Sen A",0,"BC 83 Kelsterbach","KBV Kelsterbach"]
["Fricke Andreas",8346,"Fricke","Andreas","Herren","C","KBC Kelsterbach","KBV Kelsterbach"]
["Friedrich Heike",8348,"Friedrich","Heike","Damen","C","Condor Steinheim","BV Hanau"]
[{"$f":"C196&\" \"&D196","v":"Friedrich Michael"},8349,"Friedrich","Michael","Sen A","D","Condor Steinheim","BV Hanau"]
["Fries Karlheinz",8352,"Fries","Karlheinz","Sen A","C","BC 2000 Aschaffenburg","1. BV Aschaffenburg e.V."]
["Fries Marcel",8353,"Fries","Marcel","Jun",0,"BC 2000 Aschaffenburg","1. BV Aschaffenburg e.V."]
["Frobenius Sven",8356,"Frobenius","Sven","Herren","B","BC 2000 Aschaffenburg","1. BV Aschaffenburg e.V."]
["Frye Karl-Heinz",8357,"Frye","Karl-Heinz","Sen C","E","BC 83 Kelsterbach","KBV Kelsterbach"]
["Fuertes Alfonso",8359,"Fuertes","Alfonso","Sen C",0,"BV 77 Frankfurt","BV 77 Frankfurt"]
["Fuertes Daniel",8360,"Fuertes","Daniel","Herren","A","BV 77 Frankfurt","BV 77 Frankfurt"]
["Fuertes Rosemarie",8361,"Fuertes","Rosemarie","Sen A","F","BV 77 Frankfurt","BV 77 Frankfurt"]
["Gadebusch Astri-Siri",8363,"Gadebusch","Astri-Siri","Sen A","D","BC Power Girls","BSV Kassel"]
["Gangi-Chiodo Francesco",8366,"Gangi-Chiodo","Francesco","Sen A","D","BV Oranje Frankfurt","BV Oranje Frankfurt"]
["Gracia-Esteban Lydia",8369,"Gracia-Esteban","Lydia","Damen","C","FTG-BC Frankfurt","FTG 1847 Frankfurt"]
["Gebhardt Carsten",8371,"Gebhardt","Carsten","Herren","B","Phönix Frankfurt","BV 95 Phönix Frankfurt e.V."]
["Geck Rainer",8374,"Geck","Rainer","Herren","C","AAN Schwanheim","KBVS Schwanheim"]
["Georg Sebastian",8385,"Georg","Sebastian","Herren","A","ABV Frankfurt","BSV 1990 Oberrad"]
["Geretshauser Kurt",8388,"Geretshauser","Kurt","Sen B","B","BC 2005 Frankfurt","BV Frankfurt West"]
["Glaum Marina",8397,"Glaum","Marina","Sen A","D","BC Devils","BV Oberstedtener Devils e.V."]
["Göb Patrick",8398,"Göb","Patrick","Herren","B","Condor Steinheim","BV Hanau"]
["Filor Alexandra",8399,"Filor","Alexandra","Damen","A","BV 77 Frankfurt","BV 77 Frankfurt"]
["Göbel Dennis",8400,"Göbel","Dennis","Herren","B","BV 77 Frankfurt","BV 77 Frankfurt"]
["Göbel Gisela",8402,"Göbel","Gisela","Sen C",0,"BV Frankfurt Süd","BV Frankfurt Süd"]
["Göbel - Janka Michaela",8403,"Göbel - Janka","Michaela","Damen","A","BV 77 Frankfurt","BV 77 Frankfurt"]
["Goedeke Roman",8406,"Goedeke","Roman","Herren","A","I-Bahn SC 34 Ffm","BV City Frankfurt"]
["Grechenig Bianca",8416,"Grechenig","Bianca","Jun","D","BC Höchst","BV Höchst e.V."]
["Grechenig Ferdinand",8417,"Grechenig","Ferdinand","Sen B","D","Mainhattan Bowlers Frankfurt","Mainhattan Bowlers Frankfurt"]
["Grein Michael",8420,"Grein","Michael","Sen A","E","FTG-BC Frankfurt","FTG 1847 Frankfurt"]
["Greulich Karl-Peter",8421,"Greulich","Karl-Peter","Sen A","A","AAN Schwanheim","KBVS Schwanheim"]
["Gröger Andrè",8426,"Gröger","Andrè","Herren","B","BV 1987 Frankfurt","BV 1987 Frankfurt"]
["Grossmuth Erol",8428,"Grossmuth","Erol","Jun","C","Mainhattan Bowlers Frankfurt","Mainhattan Bowlers Frankfurt"]
["Güldner Sascha",8435,"Güldner","Sascha","Herren","A","BC Gießen","1. BSV Gießen"]
["Gültling Reiner",8436,"Gültling","Reiner","Sen A","C","BC Langen 83","BSV Langen 83"]
["Gunkel Sören",8437,"Gunkel","Sören","Jug A","D","BC 83 Kelsterbach","KBV Kelsterbach"]
["Güttich Sven",8438,"Güttich","Sven","Herren","C","BC Kellerstrikers","BC Keller Strikers Dillenburg e.V."]
["Haas Anna-Maria",8439,"Haas","Anna-Maria","Sen A",null,"BC Wiesbaden","BC Wiesbaden e.V."]
["Hack Dietmar",8441,"Hack","Dietmar","Sen C","C","Mainhattan Bowlers Frankfurt","Mainhattan Bowlers Frankfurt"]
["Hafemann Gerhard",8445,"Hafemann","Gerhard","Sen A","B","KBC Kelsterbach","KBV Kelsterbach"]
["Haft Ursula",8446,"Haft","Ursula","Sen A","F","AAN Schwanheim","KBVS Schwanheim"]
["Hagen Elfie",8447,"Hagen","Elfie","Damen",0,"BC Wiesbaden","BC Wiesbaden e.V."]
["Hahn Dietmar",8451,"Hahn","Dietmar","Sen A","C","SW Friedberg","Schwarz Weiss Friedberg"]
["Hahn Stefan",8452,"Hahn","Stefan","Herren","D","SBV","BV City Frankfurt"]
["Hamburger Fred",8454,"Hamburger","Fred","Sen C","E","BC 67 Hanau","BV Hanau"]
["Hardt Werner",8459,"Hardt","Werner","Sen C",null,"BC 83 Kelsterbach","KBV Kelsterbach"]
["Haring Helga",8460,"Haring","Helga","Sen B",0,"BV Römer Frankfurt","BV Römer Frankfurt"]
["Haring Klaus",8461,"Haring","Klaus","Sen A","A","BV Römer Frankfurt","BV Römer Frankfurt"]
["Harrison Mark",8462,"Harrison","Mark","Herren","B","BC Gießen","1. BSV Gießen"]
["Harth Andrea",8463,"Harth","Andrea","Damen","A","FSV Frankfurt","FSV Frankfurt"]
["Harth Wilfried",8465,"Harth","Wilfried","Sen A",null,"AAN Schwanheim","KBVS Schwanheim"]
["Heck-Seipel Lydia",8471,"Heck-Seipel","Lydia","Sen B","C","BV Römer Frankfurt","BV Römer Frankfurt"]
["Heeg Herbert",8472,"Heeg","Herbert","Sen A","D","BC 2000 Aschaffenburg","1. BV Aschaffenburg e.V."]
["Heeg Renate",8473,"Heeg","Renate","Sen A","A","BC 2000 Aschaffenburg","1. BV Aschaffenburg e.V."]
["Heeg Sonja",8474,"Heeg","Sonja","Damen","A","BC 2000 Aschaffenburg","1. BV Aschaffenburg e.V."]
["Heger Siegfried",8477,"Heger","Siegfried","Sen A",null,"AAN Schwanheim","KBVS Schwanheim"]
["Heilmann Harry",8480,"Heilmann","Harry","Sen A","E","TSV 1860 Hanau","BV Hanau"]
["Heilmann Inge",8481,"Heilmann","Inge","Sen A","D","TSV 1860 Hanau","BV Hanau"]
["Schott Ivonne",8482,"Schott","Ivonne","Damen","B","TSV 1860 Hanau","BV Hanau"]
["Heilmann Jürgen",8483,"Heilmann","Jürgen","Sen A","D","FSV Frankfurt","FSV Frankfurt"]
["Heindl Manfred",8484,"Heindl","Manfred","Sen C","E","BC Langen 83","BSV Langen 83"]
["Heine Frank",8485,"Heine","Frank","Herren","A","BC Blau-Gelb Frankfurt","BV Blau-Gelb Frankfurt e.V."]
["Heine Günter",8486,"Heine","Günter","Sen B","C","BV 77 Frankfurt","BV 77 Frankfurt"]
["Heine Klaudija",8487,"Heine","Klaudija","Damen","A","BC Blau-Gelb Frankfurt","BV Blau-Gelb Frankfurt e.V."]
["Heinrich Thorsten",8488,"Heinrich","Thorsten","Sen A",0,"BC Fusion Langen e.V.","BC Fusion Langen e.V."]
["Held Ernst",8490,"Held","Ernst","Sen C","D","BC 83 Kelsterbach","KBV Kelsterbach"]
["Held Joshua",8491,"Held","Joshua","Jug A","D","BC 2000 Aschaffenburg","1. BV Aschaffenburg e.V."]
["Held Waltraud",8492,"Held","Waltraud","Sen C",0,"BC 83 Kelsterbach","KBV Kelsterbach"]
["Heldner Bruno",8493,"Heldner","Bruno","Sen B","D","BC 67 Hanau","BV Hanau"]
[{"$f":"C260&\" \"&D260","v":"Helfrich Regina"},8494,"Helfrich","Regina","Damen","B","FTG-BC Frankfurt","FTG 1847 Frankfurt"]
["Heller Andreas",8497,"Heller","Andreas","Sen A","B","BC 2000 Aschaffenburg","1. BV Aschaffenburg e.V."]
["Heller Dirk",8498,"Heller","Dirk","Sen A","B","Phönix Frankfurt","BV 95 Phönix Frankfurt e.V."]
["Heller Roswitha",8499,"Heller","Roswitha","Sen C",null,"Citystrikers","BC Citystrikers"]
["Hellmuth Wilhelm",8501,"Hellmuth","Wilhelm","Herren","C","BSV Oberrad","BSV 1990 Oberrad"]
["Henkel Klaus",8506,"Henkel","Klaus","Sen A",0,"BC Bad Hersfeld","BC Bad Hersfeld"]
["Henrich Elvira",8509,"Henrich","Elvira","Sen A",null,"BC Gießen","1. BSV Gießen"]
["Henrich Heinz",8511,"Henrich","Heinz","Sen B","B","BC Gießen","1. BSV Gießen"]
["Henrich Katharina",8512,"Henrich","Katharina","Damen","B","BC Gießen","1. BSV Gießen"]
["Henrich Sven",8514,"Henrich","Sven","Jun","A","ABV Frankfurt","ABV Frankfurt"]
["Hensel Bernd",8515,"Hensel","Bernd","Sen A","A","BC Blau-Gelb Frankfurt","BV Blau-Gelb Frankfurt e.V."]
["Hentschel Ilona",8516,"Hentschel","Ilona","Sen A","C","BC 83 Kelsterbach","KBV Kelsterbach"]
["Herre Manuela",8521,"Herre","Manuela","Sen B","D","ABV Frankfurt","ABV Frankfurt"]
["Herrmann Karl-Heinz",8523,"Herrmann","Karl-Heinz","Sen C",0,"BC Langen 83","BSV Langen 83"]
["Herrmann Roland",8524,"Herrmann","Roland","Sen B","C","FSV Frankfurt","FSV Frankfurt"]
["Hess Tobias",8529,"Hess","Tobias","Herren","A","ABV Frankfurt","ABV Frankfurt"]
["Hicke Sebastian",8535,"Hicke","Sebastian","Jun","B","BC 83 Kelsterbach","KBV Kelsterbach"]
["Hidde Jens",8536,"Hidde","Jens","Sen C","D","BC 67 Hanau","BV Hanau"]
["Hilger Detlef",8539,"Hilger","Detlef","Sen A","D","BC 83 Kelsterbach","KBV Kelsterbach"]
["Hitzel Walter",8545,"Hitzel","Walter","Sen A","C","BSV Dieburg","1. BSV Dieburg e.V. 1992"]
["Hlavinka Pascal",8546,"Hlavinka","Pascal","Herren","D","Mainhattan Bowlers Frankfurt","Mainhattan Bowlers Frankfurt"]
["Hock Thomas",8548,"Hock","Thomas","Herren","D","BC 2000 Aschaffenburg","1. BV Aschaffenburg e.V."]
["Hoffmann Sonja",8554,"Hoffmann","Sonja","Damen","C","Cosmos Wiesbaden","BC Cosmos Wiesbaden"]
["Hofmann Christof",8555,"Hofmann","Christof","Herren",0,"BC Bad Hersfeld","BC Bad Hersfeld"]
["Hofmann Gerd",8556,"Hofmann","Gerd","Herren","D","BC 89 Olympia Rüsselsheim","TuS Rüsselsheim"]
["Höhler Sieglinde",8557,"Höhler","Sieglinde","Sen A",null,"FTG-BC Frankfurt","FTG 1847 Frankfurt"]
["Höpfel Brigitte",8559,"Höpfel","Brigitte","Sen C","D","BC Gießen","1. BSV Gießen"]
["Hormann Bettina",8561,"Hormann","Bettina","Jun","D","SW Friedberg","Schwarz Weiss Friedberg"]
["Horne Barry",8566,"Horne","Barry","Sen C",0,"BC 75 Fortuna","BV Hanau"]
["Hospe Thilo",8568,"Hospe","Thilo","Sen A","C","FSV Frankfurt","FSV Frankfurt"]
["Hübner Rolf",8570,"Hübner","Rolf","Sen B","B","Finale Kassel","BSV Kassel"]
["Hüllenhütter Wolfgang",8571,"Hüllenhütter","Wolfgang","Sen A","B","BC Blau-Gelb Frankfurt","BV Blau-Gelb Frankfurt e.V."]
["Ilzhöfer Ilka",8581,"Ilzhöfer","Ilka","Damen","C","KBC Kelsterbach","KBV Kelsterbach"]
["Ilzhöfer Ronald",8582,"Ilzhöfer","Ronald","Herren",0,"BV 77 Frankfurt","BV 77 Frankfurt"]
["Inglese Sandro",8583,"Inglese","Sandro","Herren","B","BC 2000 Aschaffenburg","1. BV Aschaffenburg e.V."]
["Jackwerth Klaus",8584,"Jackwerth","Klaus","Sen B","C","BC Blau-Gelb Frankfurt","BV Blau-Gelb Frankfurt e.V."]
["Jambresic Yvonne",8590,"Jambresic","Yvonne","Damen","B","BC 2000 Aschaffenburg","1. BV Aschaffenburg e.V."]
["Jankowski Detlev",8595,"Jankowski","Detlev","Sen A",null,"BC 83 Kelsterbach","KBV Kelsterbach"]
["Jannusch Ingo",8596,"Jannusch","Ingo","Herren","D","BV Römer Frankfurt","BV Römer Frankfurt"]
["Janowski Siegfried",8597,"Janowski","Siegfried","Herren","B","BSV Dieburg","1. BSV Dieburg e.V. 1992"]
["Jokisch Matthias",8606,"Jokisch","Matthias","Herren","B","TSV 1860 Hanau","BV Hanau"]
["Jost Manfred",8608,"Jost","Manfred","Sen A","A","SBV","BV City Frankfurt"]
["Jost Werner",8609,"Jost","Werner","Sen C",0,"BC Höchst","BV Höchst e.V."]
["Josupeit Iris",8610,"Josupeit","Iris","Damen",null,"BC 89 Olympia Rüsselsheim","TuS Rüsselsheim"]
["Jox Thomas",8611,"Jox","Thomas","Sen A",0,"SW Friedberg","Schwarz Weiss Friedberg"]
["Jünemann Klaus",8612,"Jünemann","Klaus","Sen A","D","Mainhattan Bowlers Frankfurt","Mainhattan Bowlers Frankfurt"]
["Kaiser Michael",8618,"Kaiser","Michael","Sen A","B","Mainhattan Bowlers Frankfurt","Mainhattan Bowlers Frankfurt"]
["Kallup Werner",8619,"Kallup","Werner","Sen C","C","Finale Kassel","BSV Kassel"]
["Melching Janin",8624,"Melching","Janin","Damen","A","BC 2000 Aschaffenburg","1. BV Aschaffenburg e.V."]
["Kasten Hildegard",8627,"Kasten","Hildegard","Sen A","E","SW Friedberg","Schwarz Weiss Friedberg"]
["Heidt Angelika",8630,"Heidt","Angelika","Damen","A","FTG-BC Frankfurt","FTG 1847 Frankfurt"]
["Kiefer Michael",8639,"Kiefer","Michael","Sen B","B","BC 83 Kelsterbach","KBV Kelsterbach"]
["Kimbell Irmtraut",8643,"Kimbell","Irmtraut","Sen B",null,"BC Langen 83","BSV Langen 83"]
["Kistinger Bernhard",8646,"Kistinger","Bernhard","Sen A",0,"BSV Oberrad","BSV 1990 Oberrad"]
["Kläser Richard",8648,"Kläser","Richard","Herren","D","BC 89 Olympia Rüsselsheim","TuS Rüsselsheim"]
["Klein Detlef",8651,"Klein","Detlef","Sen C",null,"FSV Frankfurt","FSV Frankfurt"]
["Nau Marcel",8658,"Nau","Marcel","Jug A","E","SBV","BV City Frankfurt"]
["Muth Andrea",8660,"Muth","Andrea","Damen","E","BC Blau-Gelb Frankfurt","BV Blau-Gelb Frankfurt e.V."]
["Kleppig Constanze",8661,"Kleppig","Constanze","Sen A","D","Condor Steinheim","BV Hanau"]
["Klier Reinhard",8662,"Klier","Reinhard","Sen B","B","TSV 1860 Hanau","BV Hanau"]
["Knischewski Petra",8663,"Knischewski","Petra","Sen B","B","BC Blau-Gelb Frankfurt","BV Blau-Gelb Frankfurt e.V."]
["Koch Andreas",8667,"Koch","Andreas","Sen A","D","BC Rebstock Ffm","BV Rebstock"]
["Koch Birgit",8668,"Koch","Birgit","Sen A","D","BC Gießen","1. BSV Gießen"]
["Koch Florian",8669,"Koch","Florian","Herren","B","I-Bahn SC 34 Ffm","BV City Frankfurt"]
[{"$f":"C324&\" \"&D324","v":"Koch Monika"},8670,"Koch","Monika","Sen C","D","ABV Frankfurt","ABV Frankfurt"]
["Koch Robert",8671,"Koch","Robert","Herren","B","ABV Frankfurt","ABV Frankfurt"]
["Köhler Andreas",8674,"Köhler","Andreas","Sen A","D","BC Höchst","BV Höchst e.V."]
["Kompauer Eva-Maria",8679,"Kompauer","Eva-Maria","Damen","D","BC Wiesbaden","BC Wiesbaden e.V."]
["Kompauer Sven",8681,"Kompauer","Sven","Jun","A","I-Bahn SC 34 Ffm","BV City Frankfurt"]
["König Uta",8682,"König","Uta","Damen","B","BC Blau-Gelb Frankfurt","BV Blau-Gelb Frankfurt e.V."]
["Könner Horst",8683,"Könner","Horst","Sen A","D","BC Wiesbaden","BC Wiesbaden e.V."]
["Konway Karl",8684,"Konway","Karl","Sen A",null,"BC 67 Hanau","BV Hanau"]
["Kopp Erich",8685,"Kopp","Erich","Sen A","B","I-Bahn SC 34 Ffm","BV City Frankfurt"]
["Kosanke Bernd",8687,"Kosanke","Bernd","Sen A",null,"BV 77 Frankfurt","BV 77 Frankfurt"]
["Koslowsky Ralf",8688,"Koslowsky","Ralf","Herren","D","FSV Frankfurt","FSV Frankfurt"]
["Geck Petra",8689,"Geck","Petra","Sen A",0,"AAN Schwanheim","KBVS Schwanheim"]
["Kostial Hans-Joachim",8690,"Kostial","Hans-Joachim","Sen B","D","BV Oranje Frankfurt","BV Oranje Frankfurt"]
["Kraft Edgar",8694,"Kraft","Edgar","Sen B","E","BC Eberstadt","1. BSV Eberstadt"]
["Kraus Monika",8697,"Kraus","Monika","Sen B","D","TSV 1860 Hanau","BV Hanau"]
["Krenzer Monika",8699,"Krenzer","Monika","Sen A",null,"Cosmos Wiesbaden","BC Cosmos Wiesbaden"]
["Krüger Helmut",8701,"Krüger","Helmut","Sen C","D","BC Darmstadt","1. BSV Darmstadt 1973"]
["Küchler Jürgen",8708,"Küchler","Jürgen","Sen A","D","BV 1987 Frankfurt","BV 1987 Frankfurt"]
["Kühn Anita",8709,"Kühn","Anita","Sen B",0,"BC Blau-Gelb Frankfurt","BV Blau-Gelb Frankfurt e.V."]
["Kühne Willy",8711,"Kühne","Willy","Sen B",0,"BV Taifun Fulda","BV Taifun Fulda"]
["Kumpf Jürgen",8712,"Kumpf","Jürgen","Sen B","B","BC Rebstock Ffm","BV Rebstock"]
["Lambracht Waltraud",8717,"Lambracht","Waltraud","Sen A","D","BC Devils","BV Oberstedtener Devils e.V."]
["Frobenius Romina",8718,"Frobenius","Romina","Damen",null,"BC 2000 Aschaffenburg","1. BV Aschaffenburg e.V."]
["Lang Christel",8719,"Lang","Christel","Damen","E","BC Devils","BV Oberstedtener Devils e.V."]
["Lang Claudia",8720,"Lang","Claudia","Damen","E","SW Friedberg","Schwarz Weiss Friedberg"]
["Lapp Jörg",8725,"Lapp","Jörg","Herren",0,"I-Bahn SC 34 Ffm","BV City Frankfurt"]
["Lapp Peter",8726,"Lapp","Peter","Herren","B","SBV","BV City Frankfurt"]
["Lassiter Semra",8727,"Lassiter","Semra","Sen A","D","BC Devils","BV Oberstedtener Devils e.V."]
["Lassiter Wayne",8728,"Lassiter","Wayne","Sen A","C","Mainhattan Bowlers Frankfurt","Mainhattan Bowlers Frankfurt"]
["Lassiter Yasemin",8729,"Lassiter","Yasemin","Damen","D","BV Römer Frankfurt","BV Römer Frankfurt"]
["Laun Stephanie",8734,"Laun","Stephanie","Damen","D","KBC Kelsterbach","KBV Kelsterbach"]
["Laun Werner",8735,"Laun","Werner","Sen B","A","KBC Kelsterbach","KBV Kelsterbach"]
["Lausmann Jürgen",8736,"Lausmann","Jürgen","Herren",0,"Cosmos Wiesbaden","BC Cosmos Wiesbaden"]
["Lendzian Rainer",8742,"Lendzian","Rainer","Sen B","D","BC Bad Hersfeld","BC Bad Hersfeld"]
["Morche Andrea",8744,"Morche","Andrea","Damen",0,"BV Frankfurt Süd","BV Frankfurt Süd"]
["Lischka Klaus-Uwe",8750,"Lischka","Klaus-Uwe","Sen A","A","Finale Kassel","BSV Kassel"]
["Schmidt Melanie",8751,"Schmidt","Melanie","Damen",0,"Condor Steinheim","BV Hanau"]
["Löffler Monika",8752,"Löffler","Monika","Sen A",0,"BC 2000 Aschaffenburg","1. BV Aschaffenburg e.V."]
["Long Diana",8753,"Long","Diana","Sen A","B","Cosmos Wiesbaden","BC Cosmos Wiesbaden"]
["Long James",8754,"Long","James","Herren",null,"I-Bahn SC 34 Ffm","BV City Frankfurt"]
["Lopez Rodrigues Raul",8755,"Lopez Rodrigues","Raul","Sen B","B","BC 83 Kelsterbach","KBV Kelsterbach"]
["Lucke Joachim",8759,"Lucke","Joachim","Sen C","B","ABV Frankfurt","ABV Frankfurt"]
["Lucke Marc",8760,"Lucke","Marc","Herren","A","ABV Frankfurt","ABV Frankfurt"]
["Luoto Mika",8764,"Luoto","Mika","Herren","B","Finale Kassel","BSV Kassel"]
["Mader Florian",8768,"Mader","Florian","Herren","B","SBV","BV City Frankfurt"]
["Mader Gabi",8769,"Mader","Gabi","Sen A","C","BV 1987 Frankfurt","BV 1987 Frankfurt"]
["Mader Michael",8770,"Mader","Michael","Sen A",null,"BV 1987 Frankfurt","BV 1987 Frankfurt"]
["Mader Sven",8771,"Mader","Sven","Herren","A","BC Blau-Gelb Frankfurt","BV Blau-Gelb Frankfurt e.V."]
["Mank Mike",8777,"Mank","Mike","Jun","A","BC 83 Kelsterbach","KBV Kelsterbach"]
["Mank Siegfried",8778,"Mank","Siegfried","Sen B","D","BC 83 Kelsterbach","KBV Kelsterbach"]
["Weitzel Cornelia",8785,"Weitzel","Cornelia","Damen","A","BC Blau-Gelb Frankfurt","BV Blau-Gelb Frankfurt e.V."]
["Maul Manfred",8789,"Maul","Manfred","Sen A",0,"BC Bad Hersfeld","BC Bad Hersfeld"]
["Mautz Robert",8790,"Mautz","Robert","Sen B","B","TSV 1860 Hanau","BV Hanau"]
["Mayer Melanie",8791,"Mayer","Melanie","Damen",0,"TSV 1860 Hanau","BV Hanau"]
["Mazzon Stefan",8793,"Mazzon","Stefan","Herren","C","BC 83 Kelsterbach","KBV Kelsterbach"]
["Meissner Alexandra",8796,"Meissner","Alexandra","Damen","C","ABV Frankfurt","ABV Frankfurt"]
["Meissner Hans-Joachim",8797,"Meissner","Hans-Joachim","Herren","C","BSV Oberrad","BSV 1990 Oberrad"]
["Melching Günter",8798,"Melching","Günter","Sen A",0,"SBV","BV City Frankfurt"]
["Melson Klaus",8799,"Melson","Klaus","Sen C",null,"Mainhattan Bowlers Frankfurt","Mainhattan Bowlers Frankfurt"]
["Merkle Herbert",8800,"Merkle","Herbert","Sen C","D","BV Römer Frankfurt","BV Römer Frankfurt"]
["Mertink Jens",8802,"Mertink","Jens","Herren","D","BSV Dieburg","1. BSV Dieburg e.V. 1992"]
["Meurer Marius",8804,"Meurer","Marius","Jug A","C","FTG-BC Frankfurt","FTG 1847 Frankfurt"]
["Meurer Sylvia",8805,"Meurer","Sylvia","Sen A","A","FTG-BC Frankfurt","FTG 1847 Frankfurt"]
["Meyer Helmut",8806,"Meyer","Helmut","Herren","D","BC Fusion Langen e.V.","BC Fusion Langen e.V."]
[{"$f":"C388&\" \"&D388","v":"Kuchenbrod Frank"},8808,"Kuchenbrod","Frank","Sen A","D","TSV 1860 Hanau","BV Hanau"]
["Kuchenbrod Gabriele",8810,"Kuchenbrod","Gabriele","Sen A","E","TSV 1860 Hanau","BV Hanau"]
["Michalak Maria",8812,"Michalak","Maria","Sen B","A","BC 2000 Aschaffenburg","1. BV Aschaffenburg e.V."]
["Micianova Jana",8814,"Micianova","Jana","Damen","D","Mainhattan Bowlers Frankfurt","Mainhattan Bowlers Frankfurt"]
["Mielke Melanie",8815,"Mielke","Melanie","Jun","C","BC Nidda Ffm","BV Nidda Frankfurt"]
["Thieme Sigrid",8816,"Thieme","Sigrid","Sen B","D","BC Nidda Ffm","BV Nidda Frankfurt"]
["Milde Roland",8818,"Milde","Roland","Herren",0,"FSV Frankfurt","FSV Frankfurt"]
["Miller Frank-Robert",8819,"Miller","Frank-Robert","Sen A",0,"AAN Schwanheim","KBVS Schwanheim"]
["Miller Iris",8820,"Miller","Iris","Damen",0,"AAN Schwanheim","KBVS Schwanheim"]
["Milnikel Frank",8821,"Milnikel","Frank","Herren","A","SBV","BV City Frankfurt"]
["Ming Benjamin",8822,"Ming","Benjamin","Herren",0,"FSV Frankfurt","FSV Frankfurt"]
["Mirschel Andrea",8823,"Mirschel","Andrea","Damen",0,"BV 77 Frankfurt","BV 77 Frankfurt"]
["Modenbach Christian",8825,"Modenbach","Christian","Sen A","B","BC 2005 Frankfurt","BV Frankfurt West"]
["Modenbach Inge",8826,"Modenbach","Inge","Sen A",0,"BC 2005 Frankfurt","BV Frankfurt West"]
["Mögle Horst",8830,"Mögle","Horst","Sen C","D","BC 83 Kelsterbach","KBV Kelsterbach"]
["Möller Beate",8832,"Möller","Beate","Sen B","D","BC Devils","BV Oberstedtener Devils e.V."]
["Mondorf Alexander",8835,"Mondorf","Alexander","Herren","B","BC Fusion Langen e.V.","BC Fusion Langen e.V."]
["Morbe Manfred",8836,"Morbe","Manfred","Sen C","D","TSV 1860 Hanau","BV Hanau"]
["Morbe Sandra",8837,"Morbe","Sandra","Damen","D","TSV 1860 Hanau","BV Hanau"]
["Morbe Sieglinde",8838,"Morbe","Sieglinde","Sen B","D","TSV 1860 Hanau","BV Hanau"]
["Morche Jochen",8839,"Morche","Jochen","Sen A","E","BV Frankfurt Süd","BV Frankfurt Süd"]
["Merkel Gina-Maria",8843,"Merkel","Gina-Maria","Jug A","B","BC 2000 Aschaffenburg","1. BV Aschaffenburg e.V."]
["Müller Claudia",8845,"Müller","Claudia","Damen","D","Cosmos Wiesbaden","BC Cosmos Wiesbaden"]
["Müller Edgar",8849,"Müller","Edgar","Sen A","C","BC 67 Hanau","BV Hanau"]
["Müller Hans Jürgen",8851,"Müller","Hans Jürgen","Herren","B","SBV","BV City Frankfurt"]
["Müller Jochen",8853,"Müller","Jochen","Sen A","B","Cosmos Wiesbaden","BC Cosmos Wiesbaden"]
["Müller Michael",8857,"Müller","Michael","Sen A","D","BC Kellerstrikers","BC Keller Strikers Dillenburg e.V."]
["Müller Susi",8860,"Müller","Susi","Sen A","D","BC Blau-Gelb Frankfurt","BV Blau-Gelb Frankfurt e.V."]
["Munske Rolf",8865,"Munske","Rolf","Sen A","C","BC Rebstock Ffm","BV Rebstock"]
["Muth Michael",8867,"Muth","Michael","Sen A","C","BC Blau-Gelb Frankfurt","BV Blau-Gelb Frankfurt e.V."]
["Muthig Jasmin",8869,"Muthig","Jasmin","Jug A",null,"BC Nidda Ffm","BV Nidda Frankfurt"]
["Naujoks Angela",8870,"Naujoks","Angela","Sen A","B","ABV Frankfurt","ABV Frankfurt"]
["Naujoks Christoph",8871,"Naujoks","Christoph","Herren","B","BC 75 Fortuna","BV Hanau"]
["Naujoks Jürgen",8872,"Naujoks","Jürgen","Sen A","B","BC 75 Fortuna","BV Hanau"]
["Naumann Edith",8873,"Naumann","Edith","Sen B","D","BC Blau-Gelb Frankfurt","BV Blau-Gelb Frankfurt e.V."]
["Naumann Hans-Jürgen",8874,"Naumann","Hans-Jürgen","Sen B","A","BC Blau-Gelb Frankfurt","BV Blau-Gelb Frankfurt e.V."]
["Neiczer Ladislaus",8875,"Neiczer","Ladislaus","Sen A","C","BC Langen 83","BSV Langen 83"]
["Neiczer Markus",8876,"Neiczer","Markus","Herren","A","BC Langen 83","BSV Langen 83"]
["Neldner Dominic",8877,"Neldner","Dominic","Herren","A","FSV Frankfurt","FSV Frankfurt"]
["Neldner Udo",8878,"Neldner","Udo","Sen B",0,"FSV Frankfurt","FSV Frankfurt"]
["Neldner Ute",8879,"Neldner","Ute","Sen A",null,"FSV Frankfurt","FSV Frankfurt"]
["Neumann Heike",8885,"Neumann","Heike","Sen A",0,"BC 75 Fortuna","BV Hanau"]
["Nickusch Michael",8889,"Nickusch","Michael","Sen B","E","TSV 1860 Hanau","BV Hanau"]
["Nicolaus Veit",8890,"Nicolaus","Veit","Sen A",0,"Cosmos Wiesbaden","BC Cosmos Wiesbaden"]
["Niemand Wolfgang",8892,"Niemand","Wolfgang","Sen B","D","Condor Steinheim","BV Hanau"]
["Nolte Joachim",8895,"Nolte","Joachim","Sen A","A","KBC Kelsterbach","KBV Kelsterbach"]
["Norz Norbert",8896,"Norz","Norbert","Sen B","D","BC Blau-Gelb Frankfurt","BV Blau-Gelb Frankfurt e.V."]
["Obst Mike",8900,"Obst","Mike","Sen A","C","BC Nord West Ffm","BSV Nord West Frankfurt"]
["Obst Roland",8901,"Obst","Roland","Sen B","D","BC Nord West Ffm","BSV Nord West Frankfurt"]
["Och Jürgen",8903,"Och","Jürgen","Sen B","C","BC 2000 Aschaffenburg","1. BV Aschaffenburg e.V."]
["Olbrich Manfred",8904,"Olbrich","Manfred","Herren","C","BC Nord West Ffm","BSV Nord West Frankfurt"]
["Opper Andreas",8910,"Opper","Andreas","Herren","B","BC Gießen","1. BSV Gießen"]
["Opper Michael",8911,"Opper","Michael","Herren","C","BC Gießen","1. BSV Gießen"]
["Ott Andreas",8916,"Ott","Andreas","Herren","B","BC Blau-Gelb Frankfurt","BV Blau-Gelb Frankfurt e.V."]
["Ozwirk Heinz",8921,"Ozwirk","Heinz","Sen A","D","BV Delphi Frankfurt","BV Delphi Frankfurt e.V."]
["Pachonik Benjamin",8922,"Pachonik","Benjamin","Herren","A","ABV Frankfurt","ABV Frankfurt"]
["Paparaphiou Jessica",8924,"Paparaphiou","Jessica","Damen","B","FSV Frankfurt","FSV Frankfurt"]
["Pauli Sven",8927,"Pauli","Sven","Herren","A","Condor Steinheim","BV Hanau"]
["Peluso Alessandro",8929,"Peluso","Alessandro","Jun",null,"BC 2005 Frankfurt","BV Frankfurt West"]
["Pelz Jürgen",8930,"Pelz","Jürgen","Sen B",0,"Finale Kassel","BSV Kassel"]
["Pelz Marianne",8931,"Pelz","Marianne","Sen B","B","KBC Kelsterbach","KBV Kelsterbach"]
["Penkwitz Axel",8933,"Penkwitz","Axel","Sen A",0,"BC Rebstock Ffm","BV Rebstock"]
["Pest Hagen",8938,"Pest","Hagen","Herren","A","BC Gießen","1. BSV Gießen"]
["Petri Christian",8941,"Petri","Christian","Herren",0,"BC Wiesbaden","BC Wiesbaden e.V."]
[{"$f":"C452&\" \"&D452","v":"Petry Inge"},8942,"Petry","Inge","Sen B","E","BC 2005 Frankfurt","BV Frankfurt West"]
["Pfaff Tom",8944,"Pfaff","Tom","Herren",null,"BC Blau-Gelb Frankfurt","BV Blau-Gelb Frankfurt e.V."]
["Pilo Salvatore",8949,"Pilo","Salvatore","Sen A","C","BC 2000 Aschaffenburg","1. BV Aschaffenburg e.V."]
["Plesch Uschi",8952,"Plesch","Uschi","Damen","D","KBC Kelsterbach","KBV Kelsterbach"]
["Pohl Frantz",8953,"Pohl","Frantz","Sen A","A","SBV","BV City Frankfurt"]
["Pöhner Cornelia",8954,"Pöhner","Cornelia","Damen","C","BC 2000 Aschaffenburg","1. BV Aschaffenburg e.V."]
["Poller Armin",8955,"Poller","Armin","Sen A","A","BV 77 Frankfurt","BV 77 Frankfurt"]
["Popiol Bernd",8956,"Popiol","Bernd","Sen C",0,"BSV Dieburg","1. BSV Dieburg e.V. 1992"]
["Popiol Christina",8957,"Popiol","Christina","Damen","C","BSV Dieburg","1. BSV Dieburg e.V. 1992"]
["Popiol Inke",8958,"Popiol","Inke","Sen C","E","BSV Dieburg","1. BSV Dieburg e.V. 1992"]
["Pratz Marcus",8961,"Pratz","Marcus","Herren","E","BV Delphi Frankfurt","BV Delphi Frankfurt e.V."]
["Primbs Paul",8967,"Primbs","Paul","Sen C","D","BV Oranje Frankfurt","BV Oranje Frankfurt"]
["Prosch Stefan",8969,"Prosch","Stefan","Jun","D","I-Bahn SC 34 Ffm","BV City Frankfurt"]
["Pürzl Christel",8970,"Pürzl","Christel","Sen A","D","SW Friedberg","Schwarz Weiss Friedberg"]
["Pürzl Rebecca",8971,"Pürzl","Rebecca","Damen","D","SW Friedberg","Schwarz Weiss Friedberg"]
["Racpan Christian",8973,"Racpan","Christian","Herren","A","Finale Kassel","BSV Kassel"]
["Rademacher Klaus",8975,"Rademacher","Klaus","Sen A","D","AAN Schwanheim","KBVS Schwanheim"]
["Räder Peter",8976,"Räder","Peter","Herren",0,"BC Gießen","1. BSV Gießen"]
["Rahaus Stefan",8978,"Rahaus","Stefan","Sen A",0,"BSV Dieburg","1. BSV Dieburg e.V. 1992"]
["Rau Dieter",8982,"Rau","Dieter","Sen B","E","BC 89 Olympia Rüsselsheim","TuS Rüsselsheim"]
["Rau Waltraud",8983,"Rau","Waltraud","Sen B","D","BC 89 Olympia Rüsselsheim","TuS Rüsselsheim"]
["Rauthe Alexander",8986,"Rauthe","Alexander","Jun","B","TSV 1860 Hanau","BV Hanau"]
["Rauthe Manfred",8987,"Rauthe","Manfred","Sen B","E","BV Römer Frankfurt","BV Römer Frankfurt"]
["Regenfuss Norbert",8990,"Regenfuss","Norbert","Sen C","D","BV Frankfurt Süd","BV Frankfurt Süd"]
["Reichert Klaus",8993,"Reichert","Klaus","Sen C","E","BV Oranje Frankfurt","BV Oranje Frankfurt"]
["Reinsch Sebastian",8999,"Reinsch","Sebastian","Jun","B","I-Bahn SC 34 Ffm","BV City Frankfurt"]
["Schünzel Ralph",9201,"Schünzel","Ralph","Sen A",null,"Condor Steinheim","BV Hanau"]
["Hüllenhütter Claudia",10022,"Hüllenhütter","Claudia","Sen A","B","Cosmos Wiesbaden","BC Cosmos Wiesbaden"]
["Dreher Stefan",10026,"Dreher","Stefan","Sen A","A","Condor Steinheim","BV Hanau"]
["Becker Jens",10052,"Becker","Jens","Herren","E","City Bowler Kassel","City Bowler Kassel e.V."]
["Hoffmann Heinz-Thomas",10059,"Hoffmann","Heinz-Thomas","Herren",null,"BV 1987 Frankfurt","BV 1987 Frankfurt"]
["Aljakrinskij Alexander",10065,"Aljakrinskij","Alexander","Sen A","D","BC 83 Kelsterbach","KBV Kelsterbach"]
["Aljakrinskij Natalia",10066,"Aljakrinskij","Natalia","Damen","D","BC 83 Kelsterbach","KBV Kelsterbach"]
["Winter Asko",10068,"Winter","Asko","Herren","C","BC Fusion Langen e.V.","BC Fusion Langen e.V."]
["Knobloch Joerg",10069,"Knobloch","Joerg","Herren","B","BC 83 Kelsterbach","KBV Kelsterbach"]
["Stock Ulrich",10110,"Stock","Ulrich","Herren","B","SW Friedberg","Schwarz Weiss Friedberg"]
["Schlier Elisabeth",10111,"Schlier","Elisabeth","Sen A","B","SW Friedberg","Schwarz Weiss Friedberg"]
["Heuser Thomas",10114,"Heuser","Thomas","Herren","B","BV 77 Frankfurt","BV 77 Frankfurt"]
["Maus Joshua",10129,"Maus","Joshua","Jug A",0,"City Bowler Kassel","City Bowler Kassel e.V."]
["Balz Arthur",10130,"Balz","Arthur","Sen A",0,"City Bowler Kassel","City Bowler Kassel e.V."]
["Szczypski Jürgen",10164,"Szczypski","Jürgen","Herren","C","BC 67 Hanau","BV Hanau"]
["Berndt Ernst",10166,"Berndt","Ernst","Sen C","A","Mainhattan Bowlers Frankfurt","Mainhattan Bowlers Frankfurt"]
["Scheibe Thomas",10178,"Scheibe","Thomas","Herren","A","TSV 1860 Hanau","BV Hanau"]
["Caldwell James",10193,"Caldwell","James","Herren","B","Mainhattan Bowlers Frankfurt","Mainhattan Bowlers Frankfurt"]
["Hahn Sascha",10208,"Hahn","Sascha","Herren","C","SW Friedberg","Schwarz Weiss Friedberg"]
["Mirau Dennis",10215,"Mirau","Dennis","Herren","B","BC Fusion Langen e.V.","BC Fusion Langen e.V."]
["Diehle Daniel",10230,"Diehle","Daniel","Herren",0,"City Bowler Kassel","City Bowler Kassel e.V."]
["Herbig Frank",10243,"Herbig","Frank","Herren","B","Phönix Frankfurt","BV 95 Phönix Frankfurt e.V."]
["Klüh Heidi",10261,"Klüh","Heidi","Sen A",0,"Condor Steinheim","BV Hanau"]
["Seyfarth Robert",10300,"Seyfarth","Robert","Herren","C","BC Fusion Langen e.V.","BC Fusion Langen e.V."]
["Mogk Dominik",10301,"Mogk","Dominik","Herren","B","BC Fusion Langen e.V.","BC Fusion Langen e.V."]
["Heber Bernd",10304,"Heber","Bernd","Sen A",null,"BC Fusion Langen e.V.","BC Fusion Langen e.V."]
["Siemonsen Melanie",10366,"Siemonsen","Melanie","Damen","F","Phönix Frankfurt","BV 95 Phönix Frankfurt e.V."]
["Gruchot Dennis",10369,"Gruchot","Dennis","Herren","E","BC 75 Fortuna","BV Hanau"]
["Extra Dan Oliver",10440,"Extra","Dan Oliver","Herren",0,"BC 2000 Aschaffenburg","1. BV Aschaffenburg e.V."]
["Obst Sascha",12494,"Obst","Sascha","Jun","B","Finale Kassel","BSV Kassel"]
["Schutte Saskia",12620,"Schutte","Saskia","Jun","B","BC 83 Kelsterbach","KBV Kelsterbach"]
["Steinwehr Steffen",12734,"Steinwehr","Steffen","Herren","C","City Bowler Kassel","City Bowler Kassel e.V."]
["Baumann Norbert",12869,"Baumann","Norbert","Sen C","A","KBC Kelsterbach","KBV Kelsterbach"]
["Baumann Gabriele",12996,"Baumann","Gabriele","Sen A","A","KBC Kelsterbach","KBV Kelsterbach"]
["Gladigau Philipp",13056,"Gladigau","Philipp","Herren","A","BC Blau-Gelb Frankfurt","BV Blau-Gelb Frankfurt e.V."]
["Eisermann Dirk",13779,"Eisermann","Dirk","Herren",0,"City Bowler Kassel","City Bowler Kassel e.V."]
["Keil Patrick",14002,"Keil","Patrick","Herren","C","Bowlingsportclub Bensheim 08 e.V","Bowlingsportclub Bensheim 08 e.V"]
["Lohmar Klaus",14034,"Lohmar","Klaus","Sen B","A","BC Gießen","1. BSV Gießen"]
[{"$f":"C516&\" \"&D516","v":"Opfer Manfred"},14076,"Opfer","Manfred","Herren","B","Phönix Frankfurt","BV 95 Phönix Frankfurt e.V."]
["Czermak Wolfgang",14079,"Czermak","Wolfgang","Herren","C","Bowlingsportclub Bensheim 08 e.V","Bowlingsportclub Bensheim 08 e.V"]
["Weber Tassanee",14216,"Weber","Tassanee","Sen B","C","BC 2005 Frankfurt","BV Frankfurt West"]
["Geißler Nadine",14633,"Geißler","Nadine","Damen","A","BV 77 Frankfurt","BV 77 Frankfurt"]
["Keil Dominik",14684,"Keil","Dominik","Jun",0,"Bowlingsportclub Bensheim 08 e.V","Bowlingsportclub Bensheim 08 e.V"]
["Keil Hans-Peter",14689,"Keil","Hans-Peter","Sen A","D","Bowlingsportclub Bensheim 08 e.V","Bowlingsportclub Bensheim 08 e.V"]
["Prell Christin",14693,"Prell","Christin","Jun",0,"Bowlingsportclub Bensheim 08 e.V","Bowlingsportclub Bensheim 08 e.V"]
["Möbius Peter",14750,"Möbius","Peter","Sen A","B","KBC Kelsterbach","KBV Kelsterbach"]
["Reitze Klaus",15005,"Reitze","Klaus","Sen A","A","BC Blau-Gelb Frankfurt","BV Blau-Gelb Frankfurt e.V."]
["Retke Hannelore",15006,"Retke","Hannelore","Sen B",0,"BC Wiesbaden","BC Wiesbaden e.V."]
["Reuss Annemarie",15009,"Reuss","Annemarie","Sen A","E","BC 2000 Aschaffenburg","1. BV Aschaffenburg e.V."]
["Reuss Bernd",15010,"Reuss","Bernd","Sen B","F","BC 2000 Aschaffenburg","1. BV Aschaffenburg e.V."]
["Reuss Dominic",15011,"Reuss","Dominic","Herren","C","BC 2000 Aschaffenburg","1. BV Aschaffenburg e.V."]
["Reuter Agnes",15012,"Reuter","Agnes","Sen A","C","Mainhattan Bowlers Frankfurt","Mainhattan Bowlers Frankfurt"]
["Reuter Winfried",15013,"Reuter","Winfried","Sen B","D","Mainhattan Bowlers Frankfurt","Mainhattan Bowlers Frankfurt"]
["Ritter V.Uleniecki Michael",15018,"Ritter V.Uleniecki","Michael","Sen C","E","BC 89 Olympia Rüsselsheim","TuS Rüsselsheim"]
["Roberts Maurice",15019,"Roberts","Maurice","Sen A","E","BC Devils","BV Oberstedtener Devils e.V."]
["Robison Dale",15020,"Robison","Dale","Sen A","A","BC Blau-Gelb Frankfurt","BV Blau-Gelb Frankfurt e.V."]
["Röder Britt",15021,"Röder","Britt","Damen",null,"BC 2000 Aschaffenburg","1. BV Aschaffenburg e.V."]
["Roeder Christoph",15026,"Roeder","Christoph","Herren","C","Mainhattan Bowlers Frankfurt","Mainhattan Bowlers Frankfurt"]
["Rogat Curd",15027,"Rogat","Curd","Sen A","C","Cosmos Wiesbaden","BC Cosmos Wiesbaden"]
["Röske Dietmar",15035,"Röske","Dietmar","Sen B","C","BC Nord West Ffm","BSV Nord West Frankfurt"]
["Rossel Reiner",15037,"Rossel","Reiner","Sen C","D","BC 83 Kelsterbach","KBV Kelsterbach"]
["Rothenhäuser Bernd",15038,"Rothenhäuser","Bernd","Sen A","D","BC Mühlheim","BV Mühlheim"]
["Rothenhäuser Werner",15039,"Rothenhäuser","Werner","Herren","D","BC Mühlheim","BV Mühlheim"]
["Roy Christopher",15040,"Roy","Christopher","Herren","A","BC Blau-Gelb Frankfurt","BV Blau-Gelb Frankfurt e.V."]
["Rückert Markus",15041,"Rückert","Markus","Herren","C","BSV Dieburg","1. BSV Dieburg e.V. 1992"]
["Rüffer Andreas",15042,"Rüffer","Andreas","Sen A",0,"BC Bad Hersfeld","BC Bad Hersfeld"]
["Rühl Marion",15043,"Rühl","Marion","Sen B","D","KBC Kelsterbach","KBV Kelsterbach"]
["Rühl Reinhard",15044,"Rühl","Reinhard","Sen C",0,"City Bowler Kassel","City Bowler Kassel e.V."]
["Ruhlmann Thomas",15045,"Ruhlmann","Thomas","Herren","D","BSV Dieburg","1. BSV Dieburg e.V. 1992"]
["Sabo Christine",15051,"Sabo","Christine","Sen A","C","KBC Kelsterbach","KBV Kelsterbach"]
["Sabo Ivan",15052,"Sabo","Ivan","Sen A","B","TSV 1860 Hanau","BV Hanau"]
["Sanchez Diana",15057,"Sanchez","Diana","Damen","D","KBC Kelsterbach","KBV Kelsterbach"]
["Schäfer Jürgen",15064,"Schäfer","Jürgen","Sen B","D","BC Langen 83","BSV Langen 83"]
["Schäfer Jürgen",15065,"Schäfer","Jürgen","Herren","B","Mainhattan Bowlers Frankfurt","Mainhattan Bowlers Frankfurt"]
["Schafnitzel Inge",15069,"Schafnitzel","Inge","Sen B",0,"BC 2005 Frankfurt","BV Frankfurt West"]
["Scharnowski Waldemar",15070,"Scharnowski","Waldemar","Herren","B","BV Frankfurt Süd","BV Frankfurt Süd"]
["Schaubach Manfred",15071,"Schaubach","Manfred","Sen C","D","BV 77 Frankfurt","BV 77 Frankfurt"]
["Schauerte Christoph",15072,"Schauerte","Christoph","Jun","E","Phönix Frankfurt","BV 95 Phönix Frankfurt e.V."]
["Schendel Jörg",15074,"Schendel","Jörg","Herren","B","BC 75 Fortuna","BV Hanau"]
["Schenk Peter",15075,"Schenk","Peter","Herren",0,"BC 83 Kelsterbach","KBV Kelsterbach"]
["Schepper Thomas",15076,"Schepper","Thomas","Herren","C","BV 77 Frankfurt","BV 77 Frankfurt"]
["Scheuermann Ludwig",15081,"Scheuermann","Ludwig","Sen A","B","BSV Oberrad","BSV 1990 Oberrad"]
["Scheuermann Patrizia",15082,"Scheuermann","Patrizia","Jun","F","ABV Frankfurt","BSV 1990 Oberrad"]
["Scheuermann Sybille",15083,"Scheuermann","Sybille","Damen","D","BSV Oberrad","BSV 1990 Oberrad"]
["Schild Frank",15086,"Schild","Frank","Sen C","D","BC 67 Hanau","BV Hanau"]
["Schiller Joachim",15087,"Schiller","Joachim","Herren","C","BC 2000 Aschaffenburg","1. BV Aschaffenburg e.V."]
["Schinkario Helmut",15092,"Schinkario","Helmut","Sen B","D","BV 1987 Frankfurt","BV 1987 Frankfurt"]
["Schinkario Nicole",15094,"Schinkario","Nicole","Damen","B","BV 1987 Frankfurt","BV 1987 Frankfurt"]
["Schinkario Thomas",15095,"Schinkario","Thomas","Herren","B","BC Gießen","1. BSV Gießen"]
["Schlappa Norbert",15097,"Schlappa","Norbert","Sen B","C","Condor Steinheim","BV Hanau"]
["Schlappa Wolfgang",15098,"Schlappa","Wolfgang","Herren","B","Condor Steinheim","BV Hanau"]
["Schley Gisela",15099,"Schley","Gisela","Sen B","D","BC Langen 83","BSV Langen 83"]
["Schley Hans-Joachim",15100,"Schley","Hans-Joachim","Sen B","D","BC Langen 83","BSV Langen 83"]
["Schmelz Peter",15104,"Schmelz","Peter","Sen B","C","BC Darmstadt","1. BSV Darmstadt 1973"]
["Schmidt Jennifer",15106,"Schmidt","Jennifer","Damen",null,"BC 2000 Aschaffenburg","1. BV Aschaffenburg e.V."]
["Schmidt Jutta",15107,"Schmidt","Jutta","Sen A","D","BC 2005 Frankfurt","BV Frankfurt West"]
["Schmidt Klaus",15108,"Schmidt","Klaus","Sen B",null,"BC Darmstadt","1. BSV Darmstadt 1973"]
["Schmidt Martin",15109,"Schmidt","Martin","Sen A","D","BC 67 Hanau","BV Hanau"]
["Schmidt Michael",15110,"Schmidt","Michael","Sen B","E","BV Frankfurt Süd","BV Frankfurt Süd"]
["Schmidt Petra",15112,"Schmidt","Petra","Damen","B","BC Blau-Gelb Frankfurt","BV Blau-Gelb Frankfurt e.V."]
["Schmitt Hans-Werner",15120,"Schmitt","Hans-Werner","Sen B","C","BC 83 Kelsterbach","KBV Kelsterbach"]
["Schmidt Thomas",15123,"Schmidt","Thomas","Herren","B","Condor Steinheim","BV Hanau"]
[{"$f":"C580&\" \"&D580","v":"Schmitt Wolfgang"},15124,"Schmitt","Wolfgang","Herren","D","BV Taifun Fulda","BV Taifun Fulda"]
["Schmitzer Joachim",15125,"Schmitzer","Joachim","Sen A","D","BC 89 Olympia Rüsselsheim","TuS Rüsselsheim"]
["Schnee Florian",15126,"Schnee","Florian","Jun","B","TSV 1860 Hanau","BV Hanau"]
["Malow Christine",15127,"Malow","Christine","Damen","B","FSV Frankfurt","FSV Frankfurt"]
["Schneider Friedrich",15128,"Schneider","Friedrich","Sen C",null,"BC 83 Kelsterbach","KBV Kelsterbach"]
["Schneider Gisela",15129,"Schneider","Gisela","Sen C","D","BC 83 Kelsterbach","KBV Kelsterbach"]
["Schneider Günter",15130,"Schneider","Günter","Sen C",0,"BC 83 Kelsterbach","KBV Kelsterbach"]
["Schneider Karl-Heinz",15132,"Schneider","Karl-Heinz","Sen C","D","BC Höchst","BV Höchst e.V."]
["Schneider Volker",15133,"Schneider","Volker","Sen A",null,"BC Gießen","1. BSV Gießen"]
["Scholdra Peter",15136,"Scholdra","Peter","Sen A","C","Citystrikers","BC Citystrikers"]
["Scholl Hans",15137,"Scholl","Hans","Sen B","D","Cosmos Wiesbaden","BC Cosmos Wiesbaden"]
["Scholz Erhard",15138,"Scholz","Erhard","Sen B","E","BSV Oberrad","BSV 1990 Oberrad"]
["Schomaker Ralf-Thomas",15140,"Schomaker","Ralf-Thomas","Sen A","C","BC Devils","BV Oberstedtener Devils e.V."]
["Schön Justus",15143,"Schön","Justus","Jun","E","BC Gießen","1. BSV Gießen"]
["Schöneck Hans-Werner",15145,"Schöneck","Hans-Werner","Sen C","E","BC Eberstadt","1. BSV Eberstadt"]
["Schröder Martina",15148,"Schröder","Martina","Damen",0,"AAN Schwanheim","KBVS Schwanheim"]
["Schröter Helge",15149,"Schröter","Helge","Herren",null,"BC Blau-Gelb Frankfurt","BV Blau-Gelb Frankfurt e.V."]
["Schubert Mike",15151,"Schubert","Mike","Herren","D","BV 1987 Frankfurt","BV 1987 Frankfurt"]
["Schudt Gerhard",15153,"Schudt","Gerhard","Sen A","D","FTG-BC Frankfurt","FTG 1847 Frankfurt"]
["Schülke Peter",15156,"Schülke","Peter","Herren",0,"FTG-BC Frankfurt","FTG 1847 Frankfurt"]
["Schultheiss Michael",15157,"Schultheiss","Michael","Herren",null,"BV Frankfurt Süd","BV Frankfurt Süd"]
["Gutzwiller Nicole",15158,"Gutzwiller","Nicole","Damen","B","FSV Frankfurt","FSV Frankfurt"]
["Schulz Herbert",15160,"Schulz","Herbert","Sen B",0,"BC Höchst","BV Höchst e.V."]
["Schulz Markus",15161,"Schulz","Markus","Herren",0,"BSV Oberrad","BSV 1990 Oberrad"]
["Schulz Petra",15162,"Schulz","Petra","Sen A","D","Mainhattan Bowlers Frankfurt","Mainhattan Bowlers Frankfurt"]
["Schulz Wolfhard",15163,"Schulz","Wolfhard","Sen B",null,"BC Höchst","BV Höchst e.V."]
["Schwab Christiane",15166,"Schwab","Christiane","Damen",null,"BC Blau-Gelb Frankfurt","BV Blau-Gelb Frankfurt e.V."]
["Schwäch Stefan",15168,"Schwäch","Stefan","Herren",null,"BC Blau-Gelb Frankfurt","BV Blau-Gelb Frankfurt e.V."]
["Braunstein Michael",15169,"Braunstein","Michael","Sen A",null,"BV 77 Frankfurt","BV 77 Frankfurt"]
["Schwarz Wolfgang",15170,"Schwarz","Wolfgang","Sen A","B","BC Blau-Gelb Frankfurt","BV Blau-Gelb Frankfurt e.V."]
["Schweitzer Jan",15171,"Schweitzer","Jan","Herren","C","BC Kellerstrikers","BC Keller Strikers Dillenburg e.V."]
["Schweitzer Jürgen",15172,"Schweitzer","Jürgen","Herren",null,"BV Oranje Frankfurt","BV Oranje Frankfurt"]
["Schwermer Thomas",15173,"Schwermer","Thomas","Sen A","C","BC Eberstadt","1. BSV Eberstadt"]
["Seib Petra",15182,"Seib","Petra","Damen","C","BC Wiesbaden","BC Wiesbaden e.V."]
["Seifert Barbora",15183,"Seifert","Barbora","Damen","C","ABV Frankfurt","ABV Frankfurt"]
["Seipel Walter",15184,"Seipel","Walter","Sen B","C","BV Römer Frankfurt","BV Römer Frankfurt"]
["Seipp Martin",15185,"Seipp","Martin","Herren",null,"BV Delphi Frankfurt","BV Delphi Frankfurt e.V."]
["Senf Peter",15186,"Senf","Peter","Sen B",0,"Finale Kassel","BSV Kassel"]
["Senkbeil Gerhard",15187,"Senkbeil","Gerhard","Sen C","E","TSV 1860 Hanau","BV Hanau"]
["Serowy Gerd",15189,"Serowy","Gerd","Sen A",0,"BC 75 Fortuna","BV Hanau"]
["Sherman Edward",15190,"Sherman","Edward","Sen B","C","BC Blau-Gelb Frankfurt","BV Blau-Gelb Frankfurt e.V."]
["Siedentopf Hannelore",15192,"Siedentopf","Hannelore","Sen C",0,"BC Höchst","BV Höchst e.V."]
["Siedentopf Peter",15193,"Siedentopf","Peter","Sen C","C","BC Höchst","BV Höchst e.V."]
["Slawik Cornelia",15198,"Slawik","Cornelia","Sen A","D","BC 89 Olympia Rüsselsheim","TuS Rüsselsheim"]
["Slawik Erwin",15199,"Slawik","Erwin","Sen A","B","Cosmos Wiesbaden","BC Cosmos Wiesbaden"]
["Slawik Miriam",15200,"Slawik","Miriam","Jun","C","FTG-BC Frankfurt","FTG 1847 Frankfurt"]
["Sommer Gabriele",15201,"Sommer","Gabriele","Sen B",null,"BC 2000 Aschaffenburg","1. BV Aschaffenburg e.V."]
["Sommer Rainer",15202,"Sommer","Rainer","Sen B",null,"BC 2000 Aschaffenburg","1. BV Aschaffenburg e.V."]
["Sommer Walter",15203,"Sommer","Walter","Sen B","D","Condor Steinheim","BV Hanau"]
["Speckmann Armin",15206,"Speckmann","Armin","Sen B",null,"BC 67 Hanau","BV Hanau"]
["Spendler Peggy",15208,"Spendler","Peggy","Damen","A","FSV Frankfurt","FSV Frankfurt"]
["Spiegler Bernd",15209,"Spiegler","Bernd","Sen C","C","BSV Dieburg","1. BSV Dieburg e.V. 1992"]
["Spot Heinz",15213,"Spot","Heinz","Sen B","B","BC 83 Kelsterbach","KBV Kelsterbach"]
["Spot Martin",15214,"Spot","Martin","Sen A",0,"AAN Schwanheim","KBVS Schwanheim"]
["Staab Manfred",15215,"Staab","Manfred","Sen A","A","TSV 1860 Hanau","BV Hanau"]
["Stapf Thorsten",15220,"Stapf","Thorsten","Herren","B","BSV Oberrad","BSV 1990 Oberrad"]
["Weiler Julian",15225,"Weiler","Julian","Herren","E","BV Römer Frankfurt","BV Römer Frankfurt"]
["Stegenwalner-Schwalb Petra",15226,"Stegenwalner-Schwalb","Petra","Sen A",0,"BV Delphi Frankfurt","BV Delphi Frankfurt e.V."]
["Steh Sandro",15228,"Steh","Sandro","Jun",null,"I-Bahn SC 34 Ffm","BV City Frankfurt"]
["Steh Sarah",15229,"Steh","Sarah","Jun","A","BV 77 Frankfurt","BV 77 Frankfurt"]
["Stein Angelika",15230,"Stein","Angelika","Sen C","D","BC Eberstadt","1. BSV Eberstadt"]
["Stelzer Rudolf",15234,"Stelzer","Rudolf","Sen B","E","BC Darmstadt","1. BSV Darmstadt 1973"]
["Stephan Peter",15238,"Stephan","Peter","Sen A","A","TSV 1860 Hanau","BV Hanau"]
["Steul Karl-Heinz",15239,"Steul","Karl-Heinz","Sen C","D","BC Blau-Gelb Frankfurt","BV Blau-Gelb Frankfurt e.V."]
[{"$f":"C644&\" \"&D644","v":"Steul Susan"},15240,"Steul","Susan","Sen A","D","Cosmos Wiesbaden","BC Cosmos Wiesbaden"]
["Stöhr Anton",15241,"Stöhr","Anton","Sen B","C","BC Nord West Ffm","BSV Nord West Frankfurt"]
["Stöhr Ulrike",15242,"Stöhr","Ulrike","Sen A","D","BC Nord West Ffm","BSV Nord West Frankfurt"]
["Stolte Gabriele",15244,"Stolte","Gabriele","Sen A",null,"BW Bornheim","Blau Weiss Bornheim"]
["Stolte Günther",15245,"Stolte","Günther","Sen A",null,"BW Bornheim","Blau Weiss Bornheim"]
["Stolte Manuela",15246,"Stolte","Manuela","Damen","B","FSV Frankfurt","FSV Frankfurt"]
["Stolz Christian",15247,"Stolz","Christian","Herren",0,"Cosmos Wiesbaden","BC Cosmos Wiesbaden"]
["Schrank Nicole",15251,"Schrank","Nicole","Damen","C","FTG-BC Frankfurt","FTG 1847 Frankfurt"]
["Strecker Roland",15252,"Strecker","Roland","Sen C","D","BC 89 Olympia Rüsselsheim","TuS Rüsselsheim"]
["Strunz Rainer",15256,"Strunz","Rainer","Herren","B","SBV","BV City Frankfurt"]
["Struth Harald",15257,"Struth","Harald","Sen A","B","BV 1987 Frankfurt","BV 1987 Frankfurt"]
["Tappert Jörg",15263,"Tappert","Jörg","Sen B",0,"BV Oranje Frankfurt","BV Oranje Frankfurt"]
["Tardt Axel",15264,"Tardt","Axel","Sen A",0,"BV 1987 Frankfurt","BV 1987 Frankfurt"]
["Tezak Dagmar",15268,"Tezak","Dagmar","Sen B",0,"BC Darmstadt","1. BSV Darmstadt 1973"]
["Tezak Janko",15269,"Tezak","Janko","Sen B","C","BC Darmstadt","1. BSV Darmstadt 1973"]
["Tharra Marina",15270,"Tharra","Marina","Sen A","D","ABV Frankfurt","ABV Frankfurt"]
["Then Manuela",15272,"Then","Manuela","Damen","C","FTG-BC Frankfurt","FTG 1847 Frankfurt"]
["Then Oliver",15273,"Then","Oliver","Herren","A","I-Bahn SC 34 Ffm","BV City Frankfurt"]
["Thierfelder Andreas",15274,"Thierfelder","Andreas","Sen A","D","BC Rebstock Ffm","BV Rebstock"]
["Thomas Benjamin",15277,"Thomas","Benjamin","Herren","B","FSV Frankfurt","FSV Frankfurt"]
["Thomas Hans-Jürgen",15278,"Thomas","Hans-Jürgen","Sen B","C","FSV Frankfurt","FSV Frankfurt"]
["Thurk Rolf",15282,"Thurk","Rolf","Sen C","D","BV Oranje Frankfurt","BV Oranje Frankfurt"]
["Timter Vanessa",15284,"Timter","Vanessa","Damen","A","BV 77 Frankfurt","BV 77 Frankfurt"]
["Tippmann Gabriele",15286,"Tippmann","Gabriele","Sen A",0,"BC Nord West Ffm","BSV Nord West Frankfurt"]
["Tippmann Harry",15287,"Tippmann","Harry","Sen C","D","BC Nord West Ffm","BSV Nord West Frankfurt"]
["Toegel-Bertsch Sieglinde",15289,"Toegel-Bertsch","Sieglinde","Sen B","F","AAN Schwanheim","KBVS Schwanheim"]
["Tragbar Thomas",15292,"Tragbar","Thomas","Sen B",null,"FSV Frankfurt","FSV Frankfurt"]
["Trebbien Uwe",15293,"Trebbien","Uwe","Sen A","D","BC Devils","BV Oberstedtener Devils e.V."]
["Trebes Stefan",15294,"Trebes","Stefan","Herren","D","BC Eberstadt","1. BSV Eberstadt"]
["Trebes Thomas",15295,"Trebes","Thomas","Sen A","D","BC Eberstadt","1. BSV Eberstadt"]
["Trendel Richard",15297,"Trendel","Richard","Sen A","C","SW Friedberg","Schwarz Weiss Friedberg"]
["Treutel Stefan",15298,"Treutel","Stefan","Herren","C","AAN Schwanheim","KBVS Schwanheim"]
["Triesch Robert",15301,"Triesch","Robert","Jun","C","BC Wiesbaden","BC Wiesbaden e.V."]
["Tscharke Uwe",15302,"Tscharke","Uwe","Sen A","B","Finale Kassel","BSV Kassel"]
["Uhlig Donald",15305,"Uhlig","Donald","Sen B","C","BC Nord West Ffm","BSV Nord West Frankfurt"]
["Ullrich-Weiss Renate",15307,"Ullrich-Weiss","Renate","Sen B","D","BC 83 Kelsterbach","KBV Kelsterbach"]
["Unger Bernd",15310,"Unger","Bernd","Sen C",null,"Mainhattan Bowlers Frankfurt","Mainhattan Bowlers Frankfurt"]
["Veith Marcus",15316,"Veith","Marcus","Herren","B","Cosmos Wiesbaden","BC Cosmos Wiesbaden"]
["Verdecchia Robert",15318,"Verdecchia","Robert","Sen C",null,"BV Römer Frankfurt","BV Römer Frankfurt"]
["Vitasovic Kresimir",15323,"Vitasovic","Kresimir","Herren","C","BSV Dieburg","1. BSV Dieburg e.V. 1992"]
["Vogel Bernd",15324,"Vogel","Bernd","Sen B","E","BV 1987 Frankfurt","BV 1987 Frankfurt"]
["Vogel Stefan",15325,"Vogel","Stefan","Herren","C","I-Bahn SC 34 Ffm","BV City Frankfurt"]
["Vornwald Beatriz",15328,"Vornwald","Beatriz","Damen",0,"Condor Steinheim","BV Hanau"]
["Walter Benedikt",15335,"Walter","Benedikt","Jug A","F","Phönix Frankfurt","BV 95 Phönix Frankfurt e.V."]
["Walter Christopher",15336,"Walter","Christopher","Herren","C","Phönix Frankfurt","BV 95 Phönix Frankfurt e.V."]
["Walter Gerhard",15337,"Walter","Gerhard","Sen A","C","SW Friedberg","Schwarz Weiss Friedberg"]
["Warner Kai",15341,"Warner","Kai","Herren","C","TSV 1860 Hanau","BV Hanau"]
["Watje Peter",15344,"Watje","Peter","Sen C","D","BC Bad Hersfeld","BC Bad Hersfeld"]
["Weber Carla",15346,"Weber","Carla","Sen C",0,"BC Devils","BV Oberstedtener Devils e.V."]
["Weidl Sebastian",15349,"Weidl","Sebastian","Herren","A","BC Wiesbaden","BC Wiesbaden e.V."]
["Weidling Wolfgang",15350,"Weidling","Wolfgang","Sen C","C","Mainhattan Bowlers Frankfurt","Mainhattan Bowlers Frankfurt"]
["Weihert Christine",15351,"Weihert","Christine","Sen A",0,"ABV Frankfurt","BSV 1990 Oberrad"]
["Weis Björn",15356,"Weis","Björn","Herren","B","BC 2000 Aschaffenburg","1. BV Aschaffenburg e.V."]
["Weissbeck Bernd",15359,"Weissbeck","Bernd","Sen C","D","Mainhattan Bowlers Frankfurt","Mainhattan Bowlers Frankfurt"]
["Weissbeck Sven",15360,"Weissbeck","Sven","Herren","A","BV Römer Frankfurt","BV Römer Frankfurt"]
["Weitzel Matthias",15361,"Weitzel","Matthias","Herren","B","BC Blau-Gelb Frankfurt","BV Blau-Gelb Frankfurt e.V."]
["Wendler Manuela",15362,"Wendler","Manuela","Damen","D","TSV 1860 Hanau","BV Hanau"]
["Wendler Stefan",15363,"Wendler","Stefan","Sen A","C","TSV 1860 Hanau","BV Hanau"]
["Wenzel Uwe",15365,"Wenzel","Uwe","Herren","B","TSV 1860 Hanau","BV Hanau"]
["Werner Walter",15367,"Werner","Walter","Sen A",0,"BC 2005 Frankfurt","BV Frankfurt West"]
["Fuchs Anatol",15371,"Fuchs","Anatol","Herren",0,"BC Kellerstrikers","BC Keller Strikers Dillenburg e.V."]
["Wiesner Christoph",15375,"Wiesner","Christoph","Herren","A","BC Gießen","1. BSV Gießen"]
["Wiesner Gerald",15377,"Wiesner","Gerald","Sen A","C","FSV Frankfurt","FSV Frankfurt"]
["Wilczek Andreas",15378,"Wilczek","Andreas","Sen A",null,"BV Römer Frankfurt","BV Römer Frankfurt"]
[{"$f":"C708&\" \"&D708","v":"Willems Jan"},15380,"Willems","Jan","Herren","C","BSV Oberrad","BSV 1990 Oberrad"]
["Willing Helmuth",15381,"Willing","Helmuth","Sen B",null,"BC Höchst","BV Höchst e.V."]
["Winkler Werner",15382,"Winkler","Werner","Sen A","C","AAN Schwanheim","KBVS Schwanheim"]
["Winter Franz",15383,"Winter","Franz","Sen A","E","BC Nord West Ffm","BSV Nord West Frankfurt"]
["Winter Wilfried",15384,"Winter","Wilfried","Sen B",null,"BC Mühlheim","BV Mühlheim"]
["Wittenborg Eckhard",15388,"Wittenborg","Eckhard","Sen C","C","BC 2005 Frankfurt","BV Frankfurt West"]
["Wittenborg Elke",15389,"Wittenborg","Elke","Sen A","D","ABV Frankfurt","ABV Frankfurt"]
["Wohlfarth Hans-Jürgen",15390,"Wohlfarth","Hans-Jürgen","Herren","D","BV 1987 Frankfurt","BV 1987 Frankfurt"]
["Wolf Lucia",15392,"Wolf","Lucia","Sen B",null,"BC Blau-Gelb Frankfurt","BV Blau-Gelb Frankfurt e.V."]
["Wölfel Klaus",15394,"Wölfel","Klaus","Sen B",0,"BC 89 Olympia Rüsselsheim","TuS Rüsselsheim"]
["Wolff Gerhard",15396,"Wolff","Gerhard","Sen C",null,"BC Rebstock Ffm","BV Rebstock"]
["Reckemeier Michaela",15398,"Reckemeier","Michaela","Damen","B","BC 2000 Aschaffenburg","1. BV Aschaffenburg e.V."]
["Wühr Lothar-Josef",15400,"Wühr","Lothar-Josef","Sen C",0,"AAN Schwanheim","KBVS Schwanheim"]
["Wünschirs Daniel",15402,"Wünschirs","Daniel","Jun",null,"BC Wiesbaden","BC Wiesbaden e.V."]
["Wüst Angela",15403,"Wüst","Angela","Damen","D","BC 2000 Aschaffenburg","1. BV Aschaffenburg e.V."]
["Yowell Vernon",15408,"Yowell","Vernon","Sen C","C","BC Blau-Gelb Frankfurt","BV Blau-Gelb Frankfurt e.V."]
["Zabelt Rene",15411,"Zabelt","Rene","Herren","B","Phönix Frankfurt","BV 95 Phönix Frankfurt e.V."]
["Zander Annette",15413,"Zander","Annette","Sen A",null,"BC 2005 Frankfurt","BV Frankfurt West"]
["Ziebach Mirko",15418,"Ziebach","Mirko","Jug A","D","Condor Steinheim","BV Hanau"]
["Zimmermann Hans",15420,"Zimmermann","Hans","Sen C",0,"I-Bahn SC 34 Ffm","BV City Frankfurt"]
["Zimmermann Thorsten",15422,"Zimmermann","Thorsten","Herren","B","BC 75 Fortuna","BV Hanau"]
["Zöller Dieter",15428,"Zöller","Dieter","Sen A","C","BC 75 Fortuna","BV 79 Obertshausen"]
["Zuhl Markus",15431,"Zuhl","Markus","Herren","A","Phönix Frankfurt","BV 95 Phönix Frankfurt e.V."]
["Zwirnmann Rosi",15432,"Zwirnmann","Rosi","Sen C","D","BC Höchst","BV Höchst e.V."]
["Schottling Andreas",15433,"Schottling","Andreas","Herren","D","Condor Steinheim","BV Hanau"]
["Schröder Michaela",15434,"Schröder","Michaela","Sen A","D","BV 1987 Frankfurt","BV 1987 Frankfurt"]
["Schröder Sarah",15435,"Schröder","Sarah","Damen","C","BV 1987 Frankfurt","BV 1987 Frankfurt"]
["Döll Andreas",15439,"Döll","Andreas","Sen B","D","BC Devils","BV Oberstedtener Devils e.V."]
["Schlösser Patrick",15440,"Schlösser","Patrick","Jun","E","Mainhattan Bowlers Frankfurt","Mainhattan Bowlers Frankfurt"]
["Jürgens Elisabeth",15453,"Jürgens","Elisabeth","Sen B","C","BC Blau-Gelb Frankfurt","BV Blau-Gelb Frankfurt e.V."]
["Tanhaei-Bazkiaei Djamshid",15454,"Tanhaei-Bazkiaei","Djamshid","Sen A","D","Mainhattan Bowlers Frankfurt","Mainhattan Bowlers Frankfurt"]
["Krüger Petra",15461,"Krüger","Petra","Sen A","D","TSV 1860 Hanau","BV Hanau"]
["Krüger Michael",15462,"Krüger","Michael","Sen A","C","TSV 1860 Hanau","BV Hanau"]
["Kretschmer Karsten",15463,"Kretschmer","Karsten","Herren","E","TSV 1860 Hanau","BV Hanau"]
["Reul Olaf",15464,"Reul","Olaf","Herren","C","KBC Kelsterbach","KBV Kelsterbach"]
["Schönhoff Andreas",15472,"Schönhoff","Andreas","Herren","B","KBC Kelsterbach","KBV Kelsterbach"]
["Hentschel Klaus Dieter",15475,"Hentschel","Klaus Dieter","Sen C","D","BC Höchst","BV Höchst e.V."]
["Rösler Bernd",15476,"Rösler","Bernd","Sen A",0,"BC Höchst","BV Höchst e.V."]
["Kluge Christian",15478,"Kluge","Christian","Jun",null,"BC Wiesbaden","BC Wiesbaden e.V."]
["Drössel Detlev",15479,"Drössel","Detlev","Sen A","D","BC Wiesbaden","BC Wiesbaden e.V."]
["Lofink Christine",15480,"Lofink","Christine","Sen B",null,"BV 77 Frankfurt","BV 77 Frankfurt"]
["Klein Jan",15484,"Klein","Jan","Jun","D","Phönix Frankfurt","BV 95 Phönix Frankfurt e.V."]
["Gulla Edelgard Monika",15486,"Gulla","Edelgard Monika","Sen C",null,"BC 83 Kelsterbach","KBV Kelsterbach"]
["Pusch Elli",15493,"Pusch","Elli","Sen A",null,"BC 89 Olympia Rüsselsheim","TuS Rüsselsheim"]
["Kessler Benjamin",15494,"Kessler","Benjamin","Herren",0,"Finale Kassel","BSV Kassel"]
["Becke Jens",15495,"Becke","Jens","Herren","E","BV Römer Frankfurt","BV Römer Frankfurt"]
["Eimuth Natascha",15496,"Eimuth","Natascha","Jug A","D","Phönix Frankfurt","BV 95 Phönix Frankfurt e.V."]
["Krüger Carmen",15497,"Krüger","Carmen","Sen A","D","BV Römer Frankfurt","BV Römer Frankfurt"]
["Krüger Jasmin",15498,"Krüger","Jasmin","Jun","E","Phönix Frankfurt","BV 95 Phönix Frankfurt e.V."]
["Krüger Michael",15499,"Krüger","Michael","Sen A","D","BV Römer Frankfurt","BV Römer Frankfurt"]
["Krüger Tamara",15500,"Krüger","Tamara","Damen","F","BV Römer Frankfurt","BV Römer Frankfurt"]
["Hitzel Sascha",15501,"Hitzel","Sascha","Herren","D","BSV Dieburg","1. BSV Dieburg e.V. 1992"]
["Born Achim",15502,"Born","Achim","Sen A","F","Mainhattan Bowlers Frankfurt","Mainhattan Bowlers Frankfurt"]
["Förster Dirk",15504,"Förster","Dirk","Herren",0,"BC 83 Kelsterbach","KBV Kelsterbach"]
["Rust Steven",15512,"Rust","Steven","Herren","B","BC 83 Kelsterbach","KBV Kelsterbach"]
["Kippes Ralf",15513,"Kippes","Ralf","Herren","D","BC 67 Hanau","BV Hanau"]
["Behr Thomas",15514,"Behr","Thomas","Herren","E","BC Kellerstrikers","BC Keller Strikers Dillenburg e.V."]
["Schmidt Robert",15516,"Schmidt","Robert","Sen A","D","BC Bad Hersfeld","BC Bad Hersfeld"]
["Gerlach Wolfram",15517,"Gerlach","Wolfram","Herren","D","Phönix Frankfurt","BV 95 Phönix Frankfurt e.V."]
["Höck Michael",15518,"Höck","Michael","Herren","D","BC Devils","BV Oberstedtener Devils e.V."]
["Hein Karsten",15520,"Hein","Karsten","Herren","A","BC 67 Hanau","BV Hanau"]
["Hastedt Ulla",15521,"Hastedt","Ulla","Damen","D","BC 83 Kelsterbach","KBV Kelsterbach"]
["Cheklal Djamel",15523,"Cheklal","Djamel","Jug A",null,"Cosmos Wiesbaden","BC Cosmos Wiesbaden"]
["Hofmann Mario",15524,"Hofmann","Mario","Jun","D","Cosmos Wiesbaden","BC Cosmos Wiesbaden"]
[{"$f":"C772&\" \"&D772","v":"Wünschirs Heiko"},15525,"Wünschirs","Heiko","Jun","D","BC Wiesbaden","BC Wiesbaden e.V."]
["Grunenberg Anja",15527,"Grunenberg","Anja","Damen",null,"BV 1987 Frankfurt","BV 1987 Frankfurt"]
["Grunenberg Sven",15528,"Grunenberg","Sven","Herren","E","BV 1987 Frankfurt","BV 1987 Frankfurt"]
["Tezak-Kilb Nicole",15529,"Tezak-Kilb","Nicole","Damen","C","ABV Frankfurt","ABV Frankfurt"]
["Arold Daniel",15530,"Arold","Daniel","Herren","B","BV 1987 Frankfurt","BV 1987 Frankfurt"]
["Hartmann Philipp",15531,"Hartmann","Philipp","Jug A","E","BC 83 Kelsterbach","KBV Kelsterbach"]
["Masak Christiane",15534,"Masak","Christiane","Sen A","D","AAN Schwanheim","KBVS Schwanheim"]
["Fuchs Olga",15542,"Fuchs","Olga","Damen","D","BC Kellerstrikers","BC Keller Strikers Dillenburg e.V."]
["Rifinius Irina",15543,"Rifinius","Irina","Damen","D","BC Blau-Gelb Frankfurt","BV Blau-Gelb Frankfurt e.V."]
["Rifinius Nadja",15544,"Rifinius","Nadja","Damen","B","FTG-BC Frankfurt","FTG 1847 Frankfurt"]
["Rifinius Katha",15545,"Rifinius","Katha","Damen","D","FTG-BC Frankfurt","FTG 1847 Frankfurt"]
["Rifinius Jakob",15546,"Rifinius","Jakob","Herren",null,"BC Kellerstrikers","BC Keller Strikers Dillenburg e.V."]
["Knöll Vitali",15547,"Knöll","Vitali","Herren","E","BC Kellerstrikers","BC Keller Strikers Dillenburg e.V."]
["Thelen Stanley",15548,"Thelen","Stanley","Herren","C","BV Römer Frankfurt","BV Römer Frankfurt"]
["Thode Karl-Heinz",15549,"Thode","Karl-Heinz","Sen C","E","BC 83 Kelsterbach","KBV Kelsterbach"]
["Höck Laura",15554,"Höck","Laura","Jug A","D","BC Devils","BV Oberstedtener Devils e.V."]
["Härtl Rudolf",15555,"Härtl","Rudolf","Sen A","C","BC 67 Hanau","BV Hanau"]
["Theobald Anja",15556,"Theobald","Anja","Damen","E","KBC Kelsterbach","KBV Kelsterbach"]
["Kasinski Joel",15562,"Kasinski","Joel","Jug A",null,"BC 83 Kelsterbach","KBV Kelsterbach"]
["Zitzmann Jan Eric",15563,"Zitzmann","Jan Eric","Jun","D","BC 83 Kelsterbach","KBV Kelsterbach"]
["Rust Martina",15567,"Rust","Martina","Sen A",0,"BC 83 Kelsterbach","KBV Kelsterbach"]
["Beumer Christoph",15569,"Beumer","Christoph","Herren","A","BC Fusion Langen e.V.","BC Fusion Langen e.V."]
["Kärmer Björn",15570,"Kärmer","Björn","Herren","C","BV 1987 Frankfurt","BV 1987 Frankfurt"]
["Görlich Benjamin",15571,"Görlich","Benjamin","Herren","D","BV 1987 Frankfurt","BV 1987 Frankfurt"]
["Eke Ugur",15572,"Eke","Ugur","Jun","D","BSV Dieburg","1. BSV Dieburg e.V. 1992"]
["Decristan Angelika",15574,"Decristan","Angelika","Sen A","E","BV Römer Frankfurt","BV Römer Frankfurt"]
["Seemann Thomas",15575,"Seemann","Thomas","Herren","D","BC Fusion Langen e.V.","BC Fusion Langen e.V."]
["Demski Claudia",15576,"Demski","Claudia","Damen",0,"BSV Dieburg","1. BSV Dieburg e.V. 1992"]
["Schröder Philip",15577,"Schröder","Philip","Jun","C","BV 1987 Frankfurt","BV 1987 Frankfurt"]
["Fischer Oliver",15578,"Fischer","Oliver","Herren","B","BC Höchst","BV Höchst e.V."]
["Schulz Christian",15579,"Schulz","Christian","Herren","B","BC Höchst","BV Höchst e.V."]
["Wahl Marleen",15580,"Wahl","Marleen","Damen",null,"AAN Schwanheim","KBVS Schwanheim"]
["Ming Frederick",15589,"Ming","Frederick","Herren","C","FSV Frankfurt","FSV Frankfurt"]
["Poller Elke",15596,"Poller","Elke","Sen A",null,"BV 77 Frankfurt","BV 77 Frankfurt"]
["Rott Waltraud",15598,"Rott","Waltraud","Sen B","E","BC Fusion Langen e.V.","BC Fusion Langen e.V."]
["Hilgenberg Björn",15602,"Hilgenberg","Björn","Herren",null,"Finale Kassel","BSV Kassel"]
["Schrage Carlo",15605,"Schrage","Carlo","Sen A","D","Citystrikers","BC Citystrikers"]
["Meegdes Marcel",15606,"Meegdes","Marcel","Herren","A","BC Langen 83","BSV Langen 83"]
["Merkel Ralf",15608,"Merkel","Ralf","Sen A","B","BC 2000 Aschaffenburg","1. BV Aschaffenburg e.V."]
["Heckmann Matthias",15609,"Heckmann","Matthias","Herren","D","BC Devils","BV Oberstedtener Devils e.V."]
["Glaßmann Regina",15610,"Glaßmann","Regina","Damen",null,"BC Devils","BV Oberstedtener Devils e.V."]
["Glaßmann Wolfgang",15611,"Glaßmann","Wolfgang","Herren","F","BC Devils","BV Oberstedtener Devils e.V."]
["Merkel Marcel",15612,"Merkel","Marcel","Jun","C","BC 2000 Aschaffenburg","1. BV Aschaffenburg e.V."]
["Moor Paul",15613,"Moor","Paul","Herren","A","Finale Kassel","BSV Kassel"]
["Palermaa Osku",15614,"Palermaa","Osku","Herren","A","Finale Kassel","BSV Kassel"]
["Hoffmann Marc",15616,"Hoffmann","Marc","Herren","C","BV 77 Frankfurt","BV 77 Frankfurt"]
["Langbein Simon",15617,"Langbein","Simon","Herren","C","BV 77 Frankfurt","BV 77 Frankfurt"]
["Hahn Angelika",15618,"Hahn","Angelika","Sen A","E","SW Friedberg","Schwarz Weiss Friedberg"]
["Jakobi Manfred",15619,"Jakobi","Manfred","Sen B","E","SW Friedberg","Schwarz Weiss Friedberg"]
["Dörflinger Justus",15625,"Dörflinger","Justus","Herren","E","BC Devils","BV Oberstedtener Devils e.V."]
["Leuthner Lena",15628,"Leuthner","Lena","Jug A","E","FTG-BC Frankfurt","FTG 1847 Frankfurt"]
["Nurmann Jens",15629,"Nurmann","Jens","Herren","D","BC Höchst","BV Höchst e.V."]
["Reich Kirsten",15631,"Reich","Kirsten","Damen",0,"FTG-BC Frankfurt","FTG 1847 Frankfurt"]
["Kraus Sabine",15632,"Kraus","Sabine","Damen","F","BV Römer Frankfurt","BV Römer Frankfurt"]
["Huber Sebastian",15633,"Huber","Sebastian","Herren","C","BC Wiesbaden","BC Wiesbaden e.V."]
["Mirza Baber-Jan",15634,"Mirza","Baber-Jan","Herren",null,"BC Wiesbaden","BC Wiesbaden e.V."]
["Müller Lisa",15636,"Müller","Lisa","Damen","D","BC Blau-Gelb Frankfurt","BV Blau-Gelb Frankfurt e.V."]
["Vornwald Knut",15641,"Vornwald","Knut","Herren","E","Condor Steinheim","BV Hanau"]
["Gilbert Bertram",15644,"Gilbert","Bertram","Sen B","C","BC Gießen","1. BSV Gießen"]
["Porter Tanja",15645,"Porter","Tanja","Damen",0,"BC Gießen","1. BSV Gießen"]
["Beyer Petra",15646,"Beyer","Petra","Sen B","D","BC Gießen","1. BSV Gießen"]
["Greenaway Jesse",15647,"Greenaway","Jesse","Sen A","D","Mainhattan Bowlers Frankfurt","Mainhattan Bowlers Frankfurt"]
["Schlamp Matthias",15648,"Schlamp","Matthias","Jun",0,"Mainhattan Bowlers Frankfurt","Mainhattan Bowlers Frankfurt"]
["Nater David",15649,"Nater","David","Jug A","D","Phönix Frankfurt","BV 95 Phönix Frankfurt e.V."]
[{"$f":"C836&\" \"&D836","v":"Shoebottom Mark"},15650,"Shoebottom","Mark","Jug A",0,"BC 2005 Frankfurt","BV Frankfurt West"]
["Günther Hubert",15651,"Günther","Hubert","Herren","D","BC Kellerstrikers","BC Keller Strikers Dillenburg e.V."]
["Lange Heiner",15652,"Lange","Heiner","Herren","B","BC Wiesbaden","BC Wiesbaden e.V."]
["Neß Daniel",15653,"Neß","Daniel","Herren","B","Phönix Frankfurt","BV 95 Phönix Frankfurt e.V."]
["Finkenauer Sandra",15654,"Finkenauer","Sandra","Damen","D","Cosmos Wiesbaden","BC Cosmos Wiesbaden"]
["Becker Britta",15657,"Becker","Britta","Damen","D","BC Gießen","1. BSV Gießen"]
["Masak Dieter",15658,"Masak","Dieter","Sen A","D","AAN Schwanheim","KBVS Schwanheim"]
["Rehbein Nicole",15660,"Rehbein","Nicole","Damen",0,"BC Power Girls","BSV Kassel"]
["Roas Jörg",15661,"Roas","Jörg","Herren","D","BC 67 Hanau","BV Hanau"]
["Becker Daniel",15662,"Becker","Daniel","Herren",null,"BC 75 Fortuna","BV 79 Obertshausen"]
["Kraus Matthias",15663,"Kraus","Matthias","Sen A","D","BV Römer Frankfurt","BV Römer Frankfurt"]
["Kilsbach Thomas",15664,"Kilsbach","Thomas","Sen A",null,"BC Gießen","1. BSV Gießen"]
["Gödde Birgit",15668,"Gödde","Birgit","Damen","E","BV Römer Frankfurt","BV Römer Frankfurt"]
["Theis-Franke Jörg",15669,"Theis-Franke","Jörg","Sen A","C","TSV 1860 Hanau","BV Hanau"]
["Dobrindt Oliver",15670,"Dobrindt","Oliver","Sen A","C","KBC Kelsterbach","KBV Kelsterbach"]
["Dobrindt Michaela",15671,"Dobrindt","Michaela","Damen","D","KBC Kelsterbach","KBV Kelsterbach"]
["Schäfer Daniel",15672,"Schäfer","Daniel","Herren","D","BC Kellerstrikers","BC Keller Strikers Dillenburg e.V."]
["Rahner Viktor",15674,"Rahner","Viktor","Herren",0,"BV 1987 Frankfurt","BV 1987 Frankfurt"]
["Doffin Wolfgang",15675,"Doffin","Wolfgang","Sen B","B","BV 1987 Frankfurt","BV 1987 Frankfurt"]
["Weingärtner Elroy",15676,"Weingärtner","Elroy","Jug B","F","SBV","BV City Frankfurt"]
["Roy Jessica",15677,"Roy","Jessica","Damen","C","BC Blau-Gelb Frankfurt","BV Blau-Gelb Frankfurt e.V."]
["Atmatzidis Charalambos",15678,"Atmatzidis","Charalambos","Jug A","E","BC Wiesbaden","BC Wiesbaden e.V."]
["Rabenseifner René",15679,"Rabenseifner","René","Jun","B","BC Wiesbaden","BC Wiesbaden e.V."]
["Becker Holger",15686,"Becker","Holger","Sen A","E","BC Eberstadt","1. BSV Eberstadt"]
["Hruschka Stephan",15687,"Hruschka","Stephan","Herren","C","AAN Schwanheim","KBVS Schwanheim"]
["Demski Tobias",15695,"Demski","Tobias","Jug B",null,"BSV Dieburg","1. BSV Dieburg e.V. 1992"]
["Bott Timo",15697,"Bott","Timo","Jug A","E","BSV Dieburg","1. BSV Dieburg e.V. 1992"]
["Herling Hagen",15698,"Herling","Hagen","Herren","F","BSV Dieburg","1. BSV Dieburg e.V. 1992"]
["Vogt Matthias",15699,"Vogt","Matthias","Sen A","D","BC Rebstock Ffm","BV Rebstock"]
["Pellmann Heike",15700,"Pellmann","Heike","Damen","E","BV Römer Frankfurt","BV Römer Frankfurt"]
["Mengel Mark",15701,"Mengel","Mark","Herren",null,"BV Römer Frankfurt","BV Römer Frankfurt"]
["Laube Michael",15702,"Laube","Michael","Herren","D","BC 2005 Frankfurt","BV Frankfurt West"]
["Schnellbacher Peter",15703,"Schnellbacher","Peter","Sen B","D","BC Darmstadt","1. BSV Darmstadt 1973"]
["Biskoping Robin",15704,"Biskoping","Robin","Herren","D","BC Gießen","1. BSV Gießen"]
["Hübner Dennis",15705,"Hübner","Dennis","Herren","B","Finale Kassel","BSV Kassel"]
["Drabe Sven",15709,"Drabe","Sven","Herren","B","BC 83 Kelsterbach","KBV Kelsterbach"]
["Krnjic Goran",15710,"Krnjic","Goran","Herren","A","Finale Kassel","BSV Kassel"]
["Model Ralf",15712,"Model","Ralf","Sen B","C","TSV 1860 Hanau","BV Hanau"]
["Holzwarth Thomas",15713,"Holzwarth","Thomas","Sen A",null,"BC Mühlheim","BV Mühlheim"]
["Bartossek Peter",15714,"Bartossek","Peter","Sen A","D","BC Mühlheim","BV Mühlheim"]
["Schmied Monika",15716,"Schmied","Monika","Damen","F","KBC Kelsterbach","KBV Kelsterbach"]
["Bauer Hans Jürgen",15717,"Bauer","Hans Jürgen","Sen C","D","KBC Kelsterbach","KBV Kelsterbach"]
["Wollschläger Thomas",15718,"Wollschläger","Thomas","Sen A","E","KBC Kelsterbach","KBV Kelsterbach"]
["Ehrmann Monika",15719,"Ehrmann","Monika","Sen A","F","KBC Kelsterbach","KBV Kelsterbach"]
["Trejic Senijad",15720,"Trejic","Senijad","Herren","F","BC 75 Fortuna","BV 79 Obertshausen"]
["Uwekoolani Daniel",15723,"Uwekoolani","Daniel","Herren","D","BC Gießen","1. BSV Gießen"]
["Schmied Kevin",15724,"Schmied","Kevin","Jun","E","KBC Kelsterbach","KBV Kelsterbach"]
["Berz Wolfgang",15725,"Berz","Wolfgang","Sen A","D","BC Mühlheim","BV Mühlheim"]
["Schaffrina Egon",15726,"Schaffrina","Egon","Sen A",null,"BSV Dieburg","1. BSV Dieburg e.V. 1992"]
["Breitwieser Werner",15727,"Breitwieser","Werner","Sen A","E","BSV Dieburg","1. BSV Dieburg e.V. 1992"]
["Grosche Maik",15728,"Grosche","Maik","Herren","C","BSV Dieburg","1. BSV Dieburg e.V. 1992"]
["Köhler Nicole",15729,"Köhler","Nicole","Damen","F","BSV Dieburg","1. BSV Dieburg e.V. 1992"]
["Netzker Lars",15730,"Netzker","Lars","Herren","F","BC Darmstadt","1. BSV Darmstadt 1973"]
["Diehl Karl",15731,"Diehl","Karl","Herren","B","BC Darmstadt","1. BSV Darmstadt 1973"]
["Schlappa Martin",15732,"Schlappa","Martin","Herren",null,"Condor Steinheim","BV Hanau"]
["Schulz Lutz",15735,"Schulz","Lutz","Sen A",null,"KBC Kelsterbach","KBV Kelsterbach"]
["Dull David",15736,"Dull","David","Jug A","D","BV Taifun Fulda","BV Taifun Fulda"]
["Deppisch Andrea",15737,"Deppisch","Andrea","Jun","D","KBC Kelsterbach","KBV Kelsterbach"]
["Beute Carsten",15738,"Beute","Carsten","Herren",null,"Citystrikers","BC Citystrikers"]
["Claus Horst",15739,"Claus","Horst","Sen A",0,"BV Delphi Frankfurt","BV Delphi Frankfurt e.V."]
["Wilson Joseph",15741,"Wilson","Joseph","Herren","E","BC Darmstadt","1. BSV Darmstadt 1973"]
["Barth Birgit",15742,"Barth","Birgit","Sen A",0,"FTG-BC Frankfurt","FTG 1847 Frankfurt"]
["Meinhardt Ralf",15744,"Meinhardt","Ralf","Herren",null,"BC 75 Fortuna","BV 79 Obertshausen"]
["Brandtscheidt Steven",15745,"Brandtscheidt","Steven","Jun","D","BC Devils","BV Oberstedtener Devils e.V."]
[{"$f":"C900&\" \"&D900","v":"Ebell Björn"},15746,"Ebell","Björn","Herren","E","BC Gießen","1. BSV Gießen"]
["Hofmann Susan",15747,"Hofmann","Susan","Damen",0,"Cosmos Wiesbaden","BC Cosmos Wiesbaden"]
["Haibach Hans Jürgen",15748,"Haibach","Hans Jürgen","Sen C","E","BV 1987 Frankfurt","BV 1987 Frankfurt"]
["Klein Peter-Jürgen",15750,"Klein","Peter-Jürgen","Sen C","C","BV Oranje Frankfurt","BV Oranje Frankfurt"]
["Toussaint Daniela",15751,"Toussaint","Daniela","Damen","E","BV Römer Frankfurt","BV Römer Frankfurt"]
["Wiacek Nadine",15752,"Wiacek","Nadine","Damen","F","BC Devils","BV Oberstedtener Devils e.V."]
["Hörner Sascha",15753,"Hörner","Sascha","Jug A",0,"BC Wiesbaden","BC Wiesbaden e.V."]
["Vornwald Chantal",15754,"Vornwald","Chantal","Jun","D","BV 1987 Frankfurt","BV 1987 Frankfurt"]
["Schlauch Philipp",15755,"Schlauch","Philipp","Jun","C","Phönix Frankfurt","BV 95 Phönix Frankfurt e.V."]
["Becker Patrick",15756,"Becker","Patrick","Jug B",0,"Jugend Bowling Club Hanau","BV Hanau"]
["Wolf Harald",15757,"Wolf","Harald","Sen C","C","BC Darmstadt","1. BSV Darmstadt 1973"]
["Stolz Torsten",15758,"Stolz","Torsten","Sen A","D","BSV Dieburg","1. BSV Dieburg e.V. 1992"]
["Geibel Markus",15759,"Geibel","Markus","Herren","D","BV Römer Frankfurt","BV Römer Frankfurt"]
["Wiegand Ilias",15760,"Wiegand","Ilias","Jug C",0,"BC Wiesbaden","BC Wiesbaden e.V."]
["Sperle Calvin",15761,"Sperle","Calvin","Jug C",0,"BC Wiesbaden","BC Wiesbaden e.V."]
["Fritzjus Jasmin",15762,"Fritzjus","Jasmin","Damen","B","BC Gießen","1. BSV Gießen"]
["Eisenberg Christina",15763,"Eisenberg","Christina","Damen","E","BC Devils","BV Oberstedtener Devils e.V."]
["Löschnig Stephan",15764,"Löschnig","Stephan","Herren",0,"BC Devils","BV Oberstedtener Devils e.V."]
["Wiacek Christopher",15765,"Wiacek","Christopher","Herren",null,"BC Devils","BV Oberstedtener Devils e.V."]
["Wiederhold Alexander",15766,"Wiederhold","Alexander","Herren",null,"BV 77 Frankfurt","BV 77 Frankfurt"]
["Herzog Thomas",15767,"Herzog","Thomas","Herren","C","Finale Kassel","BSV Kassel"]
["Krämer Tobias",15768,"Krämer","Tobias","Jun","C","BV Römer Frankfurt","BV Römer Frankfurt"]
["Pohl Kanittha",15769,"Pohl","Kanittha","Damen","B","BC Blau-Gelb Frankfurt","BV Blau-Gelb Frankfurt e.V."]
["Zander Jürgen",15770,"Zander","Jürgen","Sen B","E","BC 2005 Frankfurt","BV Frankfurt West"]
["Heininger Jörg",15771,"Heininger","Jörg","Sen A","F","BC Langen 83","BSV Langen 83"]
["Völker Terry",15772,"Völker","Terry","Sen B","D","BV Römer Frankfurt","BV Römer Frankfurt"]
["Diekert Johannes",15773,"Diekert","Johannes","Sen A","D","FTG-BC Frankfurt","FTG 1847 Frankfurt"]
["Franz Thomas",15774,"Franz","Thomas","Herren","E","BV 1987 Frankfurt","BV 1987 Frankfurt"]
["Nagel Christopher",15775,"Nagel","Christopher","Jun","D","BC 2000 Aschaffenburg","1. BV Aschaffenburg e.V."]
["Schülner Sabrina",15776,"Schülner","Sabrina","Damen",0,"BV Römer Frankfurt","BV Römer Frankfurt"]
["Böff Ralf",15777,"Böff","Ralf","Sen A","F","BV Römer Frankfurt","BV Römer Frankfurt"]
["Fischer Sylvia",15778,"Fischer","Sylvia","Damen","F","BV Römer Frankfurt","BV Römer Frankfurt"]
["Huste Alexander",15779,"Huste","Alexander","Herren","E","BV Römer Frankfurt","BV Römer Frankfurt"]
["Speck Helene",15780,"Speck","Helene","Damen",null,"FTG-BC Frankfurt","FTG 1847 Frankfurt"]
["Wells John",15781,"Wells","John","Jun","A","Finale Kassel","BSV Kassel"]
["Machura Sandra",15782,"Machura","Sandra","Damen","D","BC 83 Kelsterbach","KBV Kelsterbach"]
["Machura Damian",15783,"Machura","Damian","Herren","A","BC 83 Kelsterbach","KBV Kelsterbach"]
["Cussler Karl",15784,"Cussler","Karl","Sen C","E","BC 83 Kelsterbach","KBV Kelsterbach"]
["Kuhweide Stephan",15785,"Kuhweide","Stephan","Herren","C","BV 77 Frankfurt","BV 77 Frankfurt"]
["Küllmer Thomas",15786,"Küllmer","Thomas","Herren","C","Citystrikers","BC Citystrikers"]
["Schädler Sven",15787,"Schädler","Sven","Herren",0,"BV 77 Frankfurt","BV 77 Frankfurt"]
["Schneider Marcel",15788,"Schneider","Marcel","Herren","D","FSV Frankfurt","FSV Frankfurt"]
["Vornwald Nils",15789,"Vornwald","Nils","Herren",null,"Condor Steinheim","BV Hanau"]
["Franz Sabine",15790,"Franz","Sabine","Damen",0,"FTG-BC Frankfurt","FTG 1847 Frankfurt"]
["Meyer Herbert Andreas",15791,"Meyer","Herbert Andreas","Herren","D","FTG-BC Frankfurt","FTG 1847 Frankfurt"]
["Kimbell Michael",15792,"Kimbell","Michael","Herren","C","BC Langen 83","BSV Langen 83"]
["Leonhardt Yves",15793,"Leonhardt","Yves","Herren","C","Bowlingsportclub Bensheim 08 e.V","Bowlingsportclub Bensheim 08 e.V"]
["Winkler Peter",15794,"Winkler","Peter","Herren","D","Bowlingsportclub Bensheim 08 e.V","Bowlingsportclub Bensheim 08 e.V"]
["Wright Claudia",15795,"Wright","Claudia","Damen","C","Bowlingsportclub Bensheim 08 e.V","Bowlingsportclub Bensheim 08 e.V"]
["Wright Mark",15796,"Wright","Mark","Herren","B","Bowlingsportclub Bensheim 08 e.V","Bowlingsportclub Bensheim 08 e.V"]
["Modrak Rüdiger",15797,"Modrak","Rüdiger","Herren",0,"Bowlingsportclub Bensheim 08 e.V","Bowlingsportclub Bensheim 08 e.V"]
["Saalbach Daniel",15798,"Saalbach","Daniel","Herren","E","BC Kellerstrikers","BC Keller Strikers Dillenburg e.V."]
["Wargowski Thomas",15799,"Wargowski","Thomas","Sen B","C","BV Römer Frankfurt","BV Römer Frankfurt"]
["Wiegand Daniel",15800,"Wiegand","Daniel","Herren",0,"Bowlingsportclub Bensheim 08 e.V","Bowlingsportclub Bensheim 08 e.V"]
["Schaub Claas",15801,"Schaub","Claas","Herren","F","BV Delphi Frankfurt","BV Delphi Frankfurt e.V."]
["Tauchmann Christian",15802,"Tauchmann","Christian","Herren",null,"KBC Kelsterbach","KBV Kelsterbach"]
["Haase Reiner",15803,"Haase","Reiner","Sen B","B","BV 1987 Frankfurt","BV 1987 Frankfurt"]
["Flick Peter Uwe",15804,"Flick","Peter Uwe","Sen A","D","Phönix Frankfurt","BV 95 Phönix Frankfurt e.V."]
["Flick Dominik",15805,"Flick","Dominik","Jun","D","Phönix Frankfurt","BV 95 Phönix Frankfurt e.V."]
["Schüler Christian",15806,"Schüler","Christian","Herren","A","FSV Frankfurt","FSV Frankfurt"]
["May Christine",15807,"May","Christine","Sen B","F","BV Römer Frankfurt","BV Römer Frankfurt"]
["Kiefel Alexander",15808,"Kiefel","Alexander","Herren","D","BV 77 Frankfurt","BV 77 Frankfurt"]
["Nater Celia",15809,"Nater","Celia","Damen",null,"BC Devils","BV Oberstedtener Devils e.V."]
["Heuckeroth Anna",15810,"Heuckeroth","Anna","Jun","C","BC Blau-Gelb Frankfurt","BV Blau-Gelb Frankfurt e.V."]
[{"$f":"C964&\" \"&D964","v":"Zander Michael"},15811,"Zander","Michael","Herren","C","BSV Oberrad","BSV 1990 Oberrad"]
["Thierolf Alois",15812,"Thierolf","Alois","Sen B",0,"BC 2000 Aschaffenburg","1. BV Aschaffenburg e.V."]
["Hakin Fabio",15813,"Hakin","Fabio","Jun","A","BC Blau-Gelb Frankfurt","BV Blau-Gelb Frankfurt e.V."]
["Lütjeharms Niklas",15814,"Lütjeharms","Niklas","Jun","C","BC 2005 Frankfurt","BV Frankfurt West"]
["Lütjeharms Henrik",15815,"Lütjeharms","Henrik","Jun","C","BC 2005 Frankfurt","BV Frankfurt West"]
["Bikowski Manuel",15816,"Bikowski","Manuel","Jun","D","BSV Dieburg","1. BSV Dieburg e.V. 1992"]
["Blank Kevin",15817,"Blank","Kevin","Jug B","F","BSV Dieburg","1. BSV Dieburg e.V. 1992"]
["Schmidt Domenik",15818,"Schmidt","Domenik","Jug A","D","Phönix Frankfurt","BV 95 Phönix Frankfurt e.V."]
["Göbel Laura",15819,"Göbel","Laura","Jug B",0,"BSV Dieburg","1. BSV Dieburg e.V. 1992"]
["Khumcharoen Krisna",15820,"Khumcharoen","Krisna","Jug A",0,"BSV Dieburg","1. BSV Dieburg e.V. 1992"]
["Körbitz Dirk",15821,"Körbitz","Dirk","Herren","C","BC Gießen","1. BSV Gießen"]
["Mansmann Harald",15822,"Mansmann","Harald","Herren",null,"BC Devils","BV Oberstedtener Devils e.V."]
["Bott Inge",15823,"Bott","Inge","Sen B",null,"FTG-BC Frankfurt","FTG 1847 Frankfurt"]
["Pietzsch Frank",15824,"Pietzsch","Frank","Herren","D","FTG-BC Frankfurt","FTG 1847 Frankfurt"]
["Rousselange Florian",15825,"Rousselange","Florian","Herren","A","Phönix Frankfurt","BV 95 Phönix Frankfurt e.V."]
["Aumann Torben",15826,"Aumann","Torben","Herren","E","BC Gießen","1. BSV Gießen"]
["Gertenbach Sabine",15827,"Gertenbach","Sabine","Sen C","D","Mainhattan Bowlers Frankfurt","Mainhattan Bowlers Frankfurt"]
["Seifert Kathrin",15828,"Seifert","Kathrin","Damen","F","BC Devils","BV Oberstedtener Devils e.V."]
["Wiederhold Ann-Kathrin",15829,"Wiederhold","Ann-Kathrin","Jug A","D","BC 2000 Aschaffenburg","1. BV Aschaffenburg e.V."]
["Wagner Simon",15830,"Wagner","Simon","Herren","C","BC Fusion Langen e.V.","BC Fusion Langen e.V."]
["Pacelt Dominik",15831,"Pacelt","Dominik","Herren","D","BV Römer Frankfurt","BV Römer Frankfurt"]
["Fischer Heike",15832,"Fischer","Heike","Damen","D","BV Römer Frankfurt","BV Römer Frankfurt"]
["Hein Marco",15833,"Hein","Marco","Herren","D","BC 2000 Aschaffenburg","1. BV Aschaffenburg e.V."]
["Heeg Heiko",15834,"Heeg","Heiko","Herren",null,"BC 2000 Aschaffenburg","1. BV Aschaffenburg e.V."]
["Fenderl Stefan",15835,"Fenderl","Stefan","Herren",0,"BC 2000 Aschaffenburg","1. BV Aschaffenburg e.V."]
["Schedlbauer Robert",15836,"Schedlbauer","Robert","Sen A","D","Bowlingsportclub Bensheim 08 e.V","Bowlingsportclub Bensheim 08 e.V"]
["Reich Michael",15837,"Reich","Michael","Herren","D","Bowlingsportclub Bensheim 08 e.V","Bowlingsportclub Bensheim 08 e.V"]
["Smith Terence",15838,"Smith","Terence","Sen A","D","BC Wiesbaden","BC Wiesbaden e.V."]
["Thiel Manfred",15839,"Thiel","Manfred","Herren","D","BC Bad Hersfeld","BC Bad Hersfeld"]
["Knecht Timo",15840,"Knecht","Timo","Jun",null,"BC 2000 Aschaffenburg","1. BV Aschaffenburg e.V."]
["Schott Michael",15841,"Schott","Michael","Herren","F","TSV 1860 Hanau","BV Hanau"]
["Stephan Timm",15842,"Stephan","Timm","Herren","C","TSV 1860 Hanau","BV Hanau"]
["Bogdoll Pascal",15843,"Bogdoll","Pascal","Jun",0,"BV Römer Frankfurt","BV Römer Frankfurt"]
["Rudolf Torsten",15844,"Rudolf","Torsten","Herren","D","BC Darmstadt","1. BSV Darmstadt 1973"]
["Kohle Richard",15845,"Kohle","Richard","Sen C","D","BC Darmstadt","1. BSV Darmstadt 1973"]
["Roth Christian",15846,"Roth","Christian","Jun","F","BSV Dieburg","1. BSV Dieburg e.V. 1992"]
["Schrage Martina",15847,"Schrage","Martina","Damen",null,"Citystrikers","BC Citystrikers"]
["Jünemann Ulrike",15848,"Jünemann","Ulrike","Damen",0,"Citystrikers","BC Citystrikers"]
["Widuckel Renè",15849,"Widuckel","Renè","Herren","A","Citystrikers","BC Citystrikers"]
["Schmidt Stefan",15850,"Schmidt","Stefan","Sen A","D","City Bowler Kassel","City Bowler Kassel e.V."]
["Mütze Kai",15851,"Mütze","Kai","Herren",0,"Citystrikers","BC Citystrikers"]
["Zambon Adriano",15852,"Zambon","Adriano","Herren",0,"City Bowler Kassel","City Bowler Kassel e.V."]
["Borzych Angelika",15853,"Borzych","Angelika","Sen A",0,"City Bowler Kassel","City Bowler Kassel e.V."]
["Saupe Jens",15854,"Saupe","Jens","Herren",0,"City Bowler Kassel","City Bowler Kassel e.V."]
["Schugt Brigitte",15855,"Schugt","Brigitte","Sen A","D","BC Wiesbaden","BC Wiesbaden e.V."]
["Schneider Steffanie",15856,"Schneider","Steffanie","Jun",0,"BC Höchst","BV Höchst e.V."]
["Ludwig Manuela",15857,"Ludwig","Manuela","Damen","E","BC 2005 Frankfurt","BV Frankfurt West"]
["Malow Marco",15859,"Malow","Marco","Herren","B","BV 1987 Frankfurt","BV 1987 Frankfurt"]
["Schütz Patrick",15860,"Schütz","Patrick","Herren","D","BC 67 Hanau","BV Hanau"]
["Herbert Peter",15861,"Herbert","Peter","Sen A","D","TSV 1860 Hanau","BV Hanau"]
["Mohr Christina",15862,"Mohr","Christina","Damen",0,"BC Power Girls","BSV Kassel"]
["Persch Martina",15863,"Persch","Martina","Damen",0,"BC Power Girls","BSV Kassel"]
["Zuhl Tanja",15864,"Zuhl","Tanja","Damen","D","City Bowler Kassel","City Bowler Kassel e.V."]
["Schulz Michaela",15865,"Schulz","Michaela","Damen",null,"Citystrikers","BC Citystrikers"]
["Stasik Mike",15866,"Stasik","Mike","Herren","D","BC Rebstock Ffm","BV Rebstock"]
["Welkerling Hans",15867,"Welkerling","Hans","Sen C","F","BC Eberstadt","1. BSV Eberstadt"]
["Heuckeroth Ursula",15868,"Heuckeroth","Ursula","Sen B","E","BV Römer Frankfurt","BV Römer Frankfurt"]
["Jennrich Benjamin",15869,"Jennrich","Benjamin","Herren",0,"BV 1987 Frankfurt","BV 1987 Frankfurt"]
["Günther Christof",15870,"Günther","Christof","Herren",0,"BC Kellerstrikers","BC Keller Strikers Dillenburg e.V."]
["Garcia Prol Antonio",15871,"Garcia Prol","Antonio","Herren","E","BC Kellerstrikers","BC Keller Strikers Dillenburg e.V."]
["Göbel Thomas",15872,"Göbel","Thomas","Herren","E","BV Römer Frankfurt","BV Römer Frankfurt"]
["Westram Boris",15873,"Westram","Boris","Herren","E","Bowlingsportclub Bensheim 08 e.V","Bowlingsportclub Bensheim 08 e.V"]
["Stankowic Sascha",15874,"Stankowic","Sascha","Herren","E","BC Darmstadt","1. BSV Darmstadt 1973"]
["Habermann Cornelia",15875,"Habermann","Cornelia","Damen",0,"KBC Kelsterbach","KBV Kelsterbach"]
[{"$f":"C1028&\" \"&D1028","v":"Mand Lothar"},15876,"Mand","Lothar","Sen A","D","Finale Kassel","BSV Kassel"]
["Holzwarth Christian",15877,"Holzwarth","Christian","Herren","D","BC Mühlheim","BV Mühlheim"]
["Krock Christian",15879,"Krock","Christian","Herren",0,"BC 83 Kelsterbach","KBV Kelsterbach"]
["Ress Andreas",15880,"Ress","Andreas","Sen A","C","BC Rebstock Ffm","BV Rebstock"]
["Hassenpflug Marcel",15881,"Hassenpflug","Marcel","Herren","C","SW Friedberg","Schwarz Weiss Friedberg"]
["Haberlick Alexander",15882,"Haberlick","Alexander","Jug A",0,"SW Friedberg","Schwarz Weiss Friedberg"]
["Roth Wolfgang",15883,"Roth","Wolfgang","Sen A",0,"SW Friedberg","Schwarz Weiss Friedberg"]
["Almeida Vitor",15884,"Almeida","Vitor","Herren","D","BC Rebstock Ffm","BV Rebstock"]
["Hochhaus Jonny",15885,"Hochhaus","Jonny","Sen A","D","SW Friedberg","Schwarz Weiss Friedberg"]
["Dozckal Thomas",15886,"Dozckal","Thomas","Herren","D","ABV Frankfurt","ABV Frankfurt"]
["Krebs Thomas",15887,"Krebs","Thomas","Herren","D","BC 2000 Aschaffenburg","1. BV Aschaffenburg e.V."]
["Wolf Heike",15888,"Wolf","Heike","Damen","E","BC Langen 83","BSV Langen 83"]
["Finn Marco",15889,"Finn","Marco","Herren",0,"BC Langen 83","BSV Langen 83"]
["Bertsch Hans-Joachim",15890,"Bertsch","Hans-Joachim","Sen B","F","AAN Schwanheim","KBVS Schwanheim"]
["Hochhaus Jan",15891,"Hochhaus","Jan","Herren","E","SW Friedberg","Schwarz Weiss Friedberg"]
["Olbrich Bernd",15892,"Olbrich","Bernd","Sen A","C","BC Nord West Ffm","BSV Nord West Frankfurt"]
["Herzberger Björn",15893,"Herzberger","Björn","Herren",null,"BC Rebstock Ffm","BV Rebstock"]
["Hofstädter Stephan",15894,"Hofstädter","Stephan","Herren","E","BC Darmstadt","1. BSV Darmstadt 1973"]
["Herbert Claudia",15895,"Herbert","Claudia","Sen A","E","TSV 1860 Hanau","BV Hanau"]
["Bopf Alexander",15896,"Bopf","Alexander","Herren","F","BC Gießen","1. BSV Gießen"]
["Coleman Jason",15897,"Coleman","Jason","Jug A","D","FTG-BC Frankfurt","FTG 1847 Frankfurt"]
["Belardi Tanja",15898,"Belardi","Tanja","Damen",0,"BC Gießen","1. BSV Gießen"]
["Reich Peggy",15899,"Reich","Peggy","Damen","E","Bowlingsportclub Bensheim 08 e.V","Bowlingsportclub Bensheim 08 e.V"]
["Reich Bianca",15900,"Reich","Bianca","Jug A","E","Bowlingsportclub Bensheim 08 e.V","Bowlingsportclub Bensheim 08 e.V"]
["Wright David",15901,"Wright","David","Jug A","D","Bowlingsportclub Bensheim 08 e.V","Bowlingsportclub Bensheim 08 e.V"]
["Kuderna Bianka",15902,"Kuderna","Bianka","Damen","E","Bowlingsportclub Bensheim 08 e.V","Bowlingsportclub Bensheim 08 e.V"]
["Voelker-Hoyns Heike",15903,"Voelker-Hoyns","Heike","Sen A","E","Bowlingsportclub Bensheim 08 e.V","Bowlingsportclub Bensheim 08 e.V"]
["Kuderna Alexander",15904,"Kuderna","Alexander","Herren","B","Bowlingsportclub Bensheim 08 e.V","Bowlingsportclub Bensheim 08 e.V"]
["Listmann Thorsten",15905,"Listmann","Thorsten","Herren","F","Bowlingsportclub Bensheim 08 e.V","Bowlingsportclub Bensheim 08 e.V"]
["Hartmann Heinz",15906,"Hartmann","Heinz","Sen C","E","Bowlingsportclub Bensheim 08 e.V","Bowlingsportclub Bensheim 08 e.V"]
["Hellersberg Dulce",15907,"Hellersberg","Dulce","Damen",null,"Bowlingsportclub Bensheim 08 e.V","Bowlingsportclub Bensheim 08 e.V"]
["Gromek Claudia",15908,"Gromek","Claudia","Damen",null,"BC 83 Kelsterbach","KBV Kelsterbach"]
["Zuhl Maximilian",15909,"Zuhl","Maximilian","Jug A","D","Phönix Frankfurt","BV 95 Phönix Frankfurt e.V."]
["Tomic Robert",15911,"Tomic","Robert","Herren","C","BV Römer Frankfurt","BV Römer Frankfurt"]
["Tezak Franz",15912,"Tezak","Franz","Sen C","D","BC Darmstadt","1. BSV Darmstadt 1973"]
["Berner Sascha",15913,"Berner","Sascha","Herren","E","Bowlingsportclub Bensheim 08 e.V","Bowlingsportclub Bensheim 08 e.V"]
["Herzberger Jennifer",15914,"Herzberger","Jennifer","Damen",0,"BC 83 Kelsterbach","KBV Kelsterbach"]
["Kostial Daniel",15915,"Kostial","Daniel","Herren",null,"BC Rebstock Ffm","BV Rebstock"]
["Körner Wolfgang",15917,"Körner","Wolfgang","Sen A","F","BC 67 Hanau","BV Hanau"]
["Lamprecht Angelika",15918,"Lamprecht","Angelika","Sen A","D","BC Blau-Gelb Frankfurt","BV Blau-Gelb Frankfurt e.V."]
["Kütter Stefan",15919,"Kütter","Stefan","Herren",0,"BC 2000 Aschaffenburg","1. BV Aschaffenburg e.V."]
["Gerstel Uwe",15920,"Gerstel","Uwe","Sen A",0,"Bowlingsportclub Bensheim 08 e.V","Bowlingsportclub Bensheim 08 e.V"]
["Rudolf Nicole",15921,"Rudolf","Nicole","Damen",null,"BC Darmstadt","1. BSV Darmstadt 1973"]
["Plaumann Kay",15922,"Plaumann","Kay","Herren",null,"BC Wiesbaden","BC Wiesbaden e.V."]
["Schäfer Sandro",15923,"Schäfer","Sandro","Herren",0,"KBC Kelsterbach","KBV Kelsterbach"]
["Mc Allen Manuel",15924,"Mc Allen","Manuel","Herren","D","BC Devils","BV Oberstedtener Devils e.V."]
["Roloff Patrick",15925,"Roloff","Patrick","Herren","C","BC Blau-Gelb Frankfurt","BV Blau-Gelb Frankfurt e.V."]
["Noll Jürgen",15927,"Noll","Jürgen","Sen A",0,"BC 2005 Frankfurt","BV Frankfurt West"]
["Veenstra Joshua",15928,"Veenstra","Joshua","Jug A",null,"KBC Kelsterbach","KBV Kelsterbach"]
["Rejzek Alexander",15929,"Rejzek","Alexander","Jug A","D","BC 83 Kelsterbach","KBV Kelsterbach"]
["Flores Christina",15930,"Flores","Christina","Jug A","C","KBC Kelsterbach","KBV Kelsterbach"]
["Fürstenberg Marvin",15931,"Fürstenberg","Marvin","Jug B",0,"City Bowler Kassel","City Bowler Kassel e.V."]
["Santini Raffaele",15932,"Santini","Raffaele","Herren",null,"Phönix Frankfurt","BV 95 Phönix Frankfurt e.V."]
["Agerbo Jesper",15933,"Agerbo","Jesper","Herren","A","Finale Kassel","BSV Kassel"]
["Fleischhacker Michael",15935,"Fleischhacker","Michael","Herren","B","Mainhattan Bowlers Frankfurt","Mainhattan Bowlers Frankfurt"]
["Domesle Roger",15936,"Domesle","Roger","Sen A",0,"BC Devils","BV Oberstedtener Devils e.V."]
["Hochhaus Barbara",15937,"Hochhaus","Barbara","Sen A","E","SW Friedberg","Schwarz Weiss Friedberg"]
["Rödler Max",15938,"Rödler","Max","Herren",0,"SW Friedberg","Schwarz Weiss Friedberg"]
["Dinsenbacher Marco",15939,"Dinsenbacher","Marco","Herren","E","BV Römer Frankfurt","BV Römer Frankfurt"]
["Popp Stefan",15940,"Popp","Stefan","Herren","F","SW Friedberg","Schwarz Weiss Friedberg"]
["Dietrich Andreas",15941,"Dietrich","Andreas","Herren",0,"BC 83 Kelsterbach","KBV Kelsterbach"]
["Schaaf Sandro",15942,"Schaaf","Sandro","Herren",null,"BC Gießen","1. BSV Gießen"]
["Tambosi Michael",15943,"Tambosi","Michael","Sen B","C","Mainhattan Bowlers Frankfurt","Mainhattan Bowlers Frankfurt"]
["Kuhn Dagmar",15944,"Kuhn","Dagmar","Sen A",0,"BC Blau-Gelb Frankfurt","BV Blau-Gelb Frankfurt e.V."]
[{"$f":"C1092&\" \"&D1092","v":"Clouser John"},15945,"Clouser","John","Herren","C","SW Friedberg","Schwarz Weiss Friedberg"]
["Teske Martin",15946,"Teske","Martin","Herren","B","Cosmos Wiesbaden","BC Cosmos Wiesbaden"]
["Adjei Danilo",15947,"Adjei","Danilo","Jun","C","FTG-BC Frankfurt","FTG 1847 Frankfurt"]
["Köhler Ralf",15948,"Köhler","Ralf","Herren",0,"City Bowler Kassel","City Bowler Kassel e.V."]
["Bott Michael",15949,"Bott","Michael","Herren","E","BSV Dieburg","1. BSV Dieburg e.V. 1992"]
["Schuck Dennis",15950,"Schuck","Dennis","Jun","D","BV Römer Frankfurt","BV Römer Frankfurt"]
["Fritsche-Syndikus Michael",15951,"Fritsche-Syndikus","Michael","Sen A",null,"BC 2000 Aschaffenburg","1. BV Aschaffenburg e.V."]
["Thatcher Daniel",15952,"Thatcher","Daniel","Herren",null,"Bowlingsportclub Bensheim 08 e.V","Bowlingsportclub Bensheim 08 e.V"]
["Heim Karl",15953,"Heim","Karl","Herren",0,"Bowlingsportclub Bensheim 08 e.V","Bowlingsportclub Bensheim 08 e.V"]
["Mlotek Marc",15954,"Mlotek","Marc","Herren","C","Bowlingsportclub Bensheim 08 e.V","Bowlingsportclub Bensheim 08 e.V"]
["Hanke Jürgen",15955,"Hanke","Jürgen","Sen B",0,"Finale Kassel","BSV Kassel"]
["Wendt Sylvia",15956,"Wendt","Sylvia","Sen A","D","Mainhattan Bowlers Frankfurt","Mainhattan Bowlers Frankfurt"]
["Gittel Andreas",15957,"Gittel","Andreas","Sen A",0,"BC Devils","BV Oberstedtener Devils e.V."]
["Grieb Waldemar",15958,"Grieb","Waldemar","Sen B","E","Mainhattan Bowlers Frankfurt","Mainhattan Bowlers Frankfurt"]
["König Florian",15959,"König","Florian","Herren",null,"Bowlingsportclub Bensheim 08 e.V","Bowlingsportclub Bensheim 08 e.V"]
["Neff Nico",15960,"Neff","Nico","Jun",0,"Bowlingsportclub Bensheim 08 e.V","Bowlingsportclub Bensheim 08 e.V"]
["Fastus Lars",15962,"Fastus","Lars","Jug B","E","FTG-BC Frankfurt","FTG 1847 Frankfurt"]
["Wolf Klaudia",15963,"Wolf","Klaudia","Sen A","A","BC Blau-Gelb Frankfurt","BV Blau-Gelb Frankfurt e.V."]
["Barke Carsten",15964,"Barke","Carsten","Sen A","C","BC Fusion Langen e.V.","BC Fusion Langen e.V."]
["Barke-Ziegler Elke",15965,"Barke-Ziegler","Elke","Sen A","D","BC Fusion Langen e.V.","BC Fusion Langen e.V."]
["Boeske Christian",15966,"Boeske","Christian","Herren","B","BC Devils","BV Oberstedtener Devils e.V."]
["Claus Markus",15967,"Claus","Markus","Herren","D","BC Darmstadt","1. BSV Darmstadt 1973"]
["Markus Eugen",15968,"Markus","Eugen","Herren","D","City Bowler Kassel","City Bowler Kassel e.V."]
["Duske Dennis",15969,"Duske","Dennis","Herren","C","BC Blau-Gelb Frankfurt","BV Blau-Gelb Frankfurt e.V."]
["Nattermann Hubert",15970,"Nattermann","Hubert","Sen C","D","Mainhattan Bowlers Frankfurt","Mainhattan Bowlers Frankfurt"]
["Matle Silvia",15971,"Matle","Silvia","Sen A",0,"BC Wiesbaden","BC Wiesbaden e.V."]
["Müller Tobias",15972,"Müller","Tobias","Herren","C","Citystrikers","BC Citystrikers"]
["Noack Thomas",15973,"Noack","Thomas","Herren",0,"BC Gießen","1. BSV Gießen"]
["Spohr Philipp",15975,"Spohr","Philipp","Herren","C","Citystrikers","BC Citystrikers"]
["Stapper Tim",15976,"Stapper","Tim","Jug B","E","BC 2000 Aschaffenburg","1. BV Aschaffenburg e.V."]
["Schneider Scarlett-Alice",15978,"Schneider","Scarlett-Alice","Jug A","E","KBC Kelsterbach","KBV Kelsterbach"]
["Steinbrückner Enola-Maria",15979,"Steinbrückner","Enola-Maria","Jug A",0,"KBC Kelsterbach","KBV Kelsterbach"]
["Aulbach Klaus",15980,"Aulbach","Klaus","Jug A",null,"SW Friedberg","Schwarz Weiss Friedberg"]
["Hauck Mark",15981,"Hauck","Mark","Herren","D","Mainhattan Bowlers Frankfurt","Mainhattan Bowlers Frankfurt"]
["Wiegand Hans",15982,"Wiegand","Hans","Sen A","E","SW Friedberg","Schwarz Weiss Friedberg"]
["Richter Nick",15983,"Richter","Nick","Herren",0,"BC Wiesbaden","BC Wiesbaden e.V."]
["Keiser Alexander",15984,"Keiser","Alexander","Herren","E","BC 67 Hanau","BV Hanau"]
["Gangloff Thomas",15985,"Gangloff","Thomas","Herren",null,"BC 67 Hanau","BV Hanau"]
["Puder Alexander",15987,"Puder","Alexander","Herren","D","City Bowler Kassel","City Bowler Kassel e.V."]
["Bierschenk Eberhard",15988,"Bierschenk","Eberhard","Sen C",null,"Finale Kassel","BSV Kassel"]
["Glück Andreas",15989,"Glück","Andreas","Herren","C","BC Devils","BV Oberstedtener Devils e.V."]
["Bauer Dominik",15991,"Bauer","Dominik","Herren","D","BC Blau-Gelb Frankfurt","BV Blau-Gelb Frankfurt e.V."]
["Schubert Nick",15992,"Schubert","Nick","Jug A","F","BV 1987 Frankfurt","BV 1987 Frankfurt"]
["Messmer Christopher",15993,"Messmer","Christopher","Herren","B","Phönix Frankfurt","BV 95 Phönix Frankfurt e.V."]
["Wiegand Nico",15994,"Wiegand","Nico","Jug A",0,"SW Friedberg","Schwarz Weiss Friedberg"]
["Berg Tobias",15995,"Berg","Tobias","Jug A",0,"SW Friedberg","Schwarz Weiss Friedberg"]
["Trendel Marvin",15996,"Trendel","Marvin","Jun","D","SW Friedberg","Schwarz Weiss Friedberg"]
["Knoblauch Tobias",15997,"Knoblauch","Tobias","Herren",0,"KBC Kelsterbach","KBV Kelsterbach"]
["Vogt Michael",15998,"Vogt","Michael","Herren","D","BC Wiesbaden","BC Wiesbaden e.V."]
["Schellhammer Maik",15999,"Schellhammer","Maik","Jun","F","BC 2005 Frankfurt","BV Frankfurt West"]
["Siess Ursula",15999,"Siess","Ursula","Sen B",null,"AAN Schwanheim","KBVS Schwanheim"]
["Völkel Dirk",18800,"Völkel","Dirk","Herren","A","Finale Kassel","BSV Kassel"]
["Konieczny Bodo",18802,"Konieczny","Bodo","Herren","A","Finale Kassel","BSV Kassel"]
["Körber Martina",18938,"Körber","Martina","Damen","D","BV Römer Frankfurt","BV Römer Frankfurt"]
["Schmitz Christoff",20654,"Schmitz","Christoff","Herren","B","BC 83 Kelsterbach","KBV Kelsterbach"]
["Sager Sven",22157,"Sager","Sven","Herren","A","BC Fusion Langen e.V.","BC Fusion Langen e.V."]
["Berk Johannes",23125,"Berk","Johannes","Sen B","B","Mainhattan Bowlers Frankfurt","Mainhattan Bowlers Frankfurt"]
["Brach Patrick",24169,"Brach","Patrick","Herren","B","BC Kellerstrikers","BC Keller Strikers Dillenburg e.V."]
["Morig Oliver",24826,"Morig","Oliver","Herren","A","Finale Kassel","BSV Kassel"]
["Teece Richard",25587,"Teece","Richard","Herren","A","Finale Kassel","BSV Kassel"]
["Deller Manuel",26048,"Deller","Manuel","Herren","B","Finale Kassel","BSV Kassel"]
["Bernau Axel",26070,"Bernau","Axel","Sen C","B","Mainhattan Bowlers Frankfurt","Mainhattan Bowlers Frankfurt"]
["Groß Manuel",26087,"Groß","Manuel","Herren",null,"Mainhattan Bowlers Frankfurt","Mainhattan Bowlers Frankfurt"]
["Laukaitis Patrick",26098,"Laukaitis","Patrick","Herren","B","Mainhattan Bowlers Frankfurt","Mainhattan Bowlers Frankfurt"]
[{"$f":"C1156&\" \"&D1156","v":"Lazar Shirley"},26101,"Lazar","Shirley","Damen","A","FTG-BC Frankfurt","FTG 1847 Frankfurt"]
["Rathgeber Klaus",26108,"Rathgeber","Klaus","Sen A","A","Mainhattan Bowlers Frankfurt","Mainhattan Bowlers Frankfurt"]
["Schütz Martina",26115,"Schütz","Martina","Damen","A","FTG-BC Frankfurt","FTG 1847 Frankfurt"]
["Winternheimer Pascal",26157,"Winternheimer","Pascal","Herren","A","Finale Kassel","BSV Kassel"]
["Hirth Steffen",26181,"Hirth","Steffen","Jun","A","Mainhattan Bowlers Frankfurt","Mainhattan Bowlers Frankfurt"]
["Kirsch Tina",26185,"Kirsch","Tina","Damen","B","FTG-BC Frankfurt","FTG 1847 Frankfurt"]
["Korol Stefan",26296,"Korol","Stefan","Sen A",0,"Mainhattan Bowlers Frankfurt","Mainhattan Bowlers Frankfurt"]
["Louridas Michael",26403,"Louridas","Michael","Herren","A","I-Bahn SC 34 Ffm","BV City Frankfurt"]
["Thun Michael",26406,"Thun","Michael","Herren","B","Phönix Frankfurt","BV 95 Phönix Frankfurt e.V."]
["Zunker Samantha",26454,"Zunker","Samantha","Jun","B","FTG-BC Frankfurt","FTG 1847 Frankfurt"]
["Thun Sven",26489,"Thun","Sven","Jun","D","Phönix Frankfurt","BV 95 Phönix Frankfurt e.V."]
["Hesbacher Laura",26519,"Hesbacher","Laura","Jug A","E","FTG-BC Frankfurt","FTG 1847 Frankfurt"]
["Palumbo William",26547,"Palumbo","William","Herren","A","Phönix Frankfurt","BV 95 Phönix Frankfurt e.V."]
["Kolander Torsten",28108,"Kolander","Torsten","Herren",0,"BC 83 Kelsterbach","KBV Kelsterbach"]
["Strauß Enrico",28123,"Strauß","Enrico","Herren","A","Phönix Frankfurt","BV 95 Phönix Frankfurt e.V."]
["Degenhardt Lea",31252,"Degenhardt","Lea","Jug A","A","FTG-BC Frankfurt","FTG 1847 Frankfurt"]
["Rischer Marco",32042,"Rischer","Marco","Herren","B","Finale Kassel","BSV Kassel"]
["Hampel Peter",33001,"Hampel","Peter","Sen A","D","Citystrikers","BC Citystrikers"]
["Altunok Ümit",33002,"Altunok","Ümit","Herren","D","BC 67 Hanau","BV Hanau"]
["Koths Katrin",33003,"Koths","Katrin","Damen","D","Condor Steinheim","BV Hanau"]
["Dierks Carsten",33004,"Dierks","Carsten","Herren","D","BC Darmstadt","1. BSV Darmstadt 1973"]
["Rosenboom Nicole",33005,"Rosenboom","Nicole","Damen","D","Bowlingsportclub Bensheim 08 e.V","Bowlingsportclub Bensheim 08 e.V"]
["Lauber Melanie",33006,"Lauber","Melanie","Damen","F","Bowlingsportclub Bensheim 08 e.V","Bowlingsportclub Bensheim 08 e.V"]
["Fasser Rupert",33007,"Fasser","Rupert","Sen B","D","Bowlingsportclub Bensheim 08 e.V","Bowlingsportclub Bensheim 08 e.V"]
["Tobi Valentin",33008,"Tobi","Valentin","Jug A",0,"BC Wiesbaden","BC Wiesbaden e.V."]
["Spreng Markus",33009,"Spreng","Markus","Herren","D","BC Mühlheim","BV Mühlheim"]
["Spreng Dominic",33010,"Spreng","Dominic","Jug B",0,"BC Mühlheim","BV Mühlheim"]
["Adler Tamara",33011,"Adler","Tamara","Jug A",0,"FTG-BC Frankfurt","FTG 1847 Frankfurt"]
["Löffler Dieter",33012,"Löffler","Dieter","Herren","E","BC 2000 Aschaffenburg","1. BV Aschaffenburg e.V."]
["Burgess David",33013,"Burgess","David","Herren","D","BC 2000 Aschaffenburg","1. BV Aschaffenburg e.V."]
["Hunkel Beate",33014,"Hunkel","Beate","Damen","D","Mainhattan Bowlers Frankfurt","Mainhattan Bowlers Frankfurt"]
["Jantschik Leonhard",33015,"Jantschik","Leonhard","Sen B","D","Mainhattan Bowlers Frankfurt","Mainhattan Bowlers Frankfurt"]
["Triebel Daniela",33016,"Triebel","Daniela","Damen","E","Citystrikers","BC Citystrikers"]
["Bräuner Markus",33017,"Bräuner","Markus","Jun","C","BC Fusion Langen e.V.","BC Fusion Langen e.V."]
["Leutwiler Sabine",33018,"Leutwiler","Sabine","Sen B",0,"KBC Kelsterbach","KBV Kelsterbach"]
["Löw Maximilian",33019,"Löw","Maximilian","Jun",null,"FTG-BC Frankfurt","FTG 1847 Frankfurt"]
["Henze Markus",33020,"Henze","Markus","Herren","D","BC Kellerstrikers","BC Keller Strikers Dillenburg e.V."]
["Schuster Markus",33021,"Schuster","Markus","Herren",null,"BSV Dieburg","1. BSV Dieburg e.V. 1992"]
["Hartsch David",33022,"Hartsch","David","Herren","C","BC Rebstock Ffm","BV Rebstock"]
["Hacher Carina",33023,"Hacher","Carina","Sen A","F","Bowlingsportclub Bensheim 08 e.V","Bowlingsportclub Bensheim 08 e.V"]
["Thiel Uwe",33024,"Thiel","Uwe","Herren",null,"BC Bad Hersfeld","BC Bad Hersfeld"]
["Grützner Petra",33025,"Grützner","Petra","Sen B",0,"BC Devils","BV Oberstedtener Devils e.V."]
["Balzer Phyllis",33026,"Balzer","Phyllis","Jug A","F","BC Gießen","1. BSV Gießen"]
["Mansel Klaus",33027,"Mansel","Klaus","Sen B",null,"Citystrikers","BC Citystrikers"]
["Angersbach Christina",33028,"Angersbach","Christina","Damen",0,"Citystrikers","BC Citystrikers"]
["Rothenbacher Ralph",33029,"Rothenbacher","Ralph","Sen A","D","SW Friedberg","Schwarz Weiss Friedberg"]
["Drefs Steffen",33030,"Drefs","Steffen","Herren","B","Mainhattan Bowlers Frankfurt","Mainhattan Bowlers Frankfurt"]
["Bugs Sven",33031,"Bugs","Sven","Herren",0,"SW Friedberg","Schwarz Weiss Friedberg"]
["Jourdan Frank",33032,"Jourdan","Frank","Herren","E","BC 83 Kelsterbach","KBV Kelsterbach"]
["Wolf Matthias",33034,"Wolf","Matthias","Sen A","C","BC Devils","BV Oberstedtener Devils e.V."]
["Teuser Franziska",33035,"Teuser","Franziska","Damen","F","BC Gießen","1. BSV Gießen"]
["Rohn Jörg",33036,"Rohn","Jörg","Herren","D","BV Römer Frankfurt","BV Römer Frankfurt"]
["Krug Reiner",33037,"Krug","Reiner","Herren","D","BV Römer Frankfurt","BV Römer Frankfurt"]
["Knobloch Horst",33038,"Knobloch","Horst","Sen C","D","BC Darmstadt","1. BSV Darmstadt 1973"]
["Krug Claudia",33039,"Krug","Claudia","Damen","D","BC Blau-Gelb Frankfurt","BV Blau-Gelb Frankfurt e.V."]
["Budimir Joseph",33040,"Budimir","Joseph","Jug A","F","FTG-BC Frankfurt","FTG 1847 Frankfurt"]
["Braun Marcel",33041,"Braun","Marcel","Jun","E","BSV Dieburg","1. BSV Dieburg e.V. 1992"]
["Staudte Thomas",33042,"Staudte","Thomas","Sen A","D","BV Römer Frankfurt","BV Römer Frankfurt"]
["Balzer Armin",33043,"Balzer","Armin","Sen A","D","BC Gießen","1. BSV Gießen"]
["Firnschild Dirk",33044,"Firnschild","Dirk","Herren","C","BV 1987 Frankfurt","BV 1987 Frankfurt"]
["Fülling Florian",33045,"Fülling","Florian","Herren",0,"Condor Steinheim","BV Hanau"]
["Ries Volker",33047,"Ries","Volker","Sen A","F","BC Darmstadt","1. BSV Darmstadt 1973"]
["Lella Michele Antonio",33048,"Lella","Michele Antonio","Herren","C","BC 83 Kelsterbach","KBV Kelsterbach"]
["Vogelrieder Josef",33049,"Vogelrieder","Josef","Sen C","D","BV Frankfurt Süd","BV Frankfurt Süd"]
[{"$f":"C1220&\" \"&D1220","v":"Staudte Anita"},33050,"Staudte","Anita","Sen B","F","BV Römer Frankfurt","BV Römer Frankfurt"]
["Neubauer Eva",33051,"Neubauer","Eva","Sen B","F","BC Eberstadt","1. BSV Eberstadt"]
["Trebes Kerstin",33052,"Trebes","Kerstin","Jun","E","BC Eberstadt","1. BSV Eberstadt"]
["Seel Marcel",33053,"Seel","Marcel","Herren",null,"BC Fusion Langen e.V.","BC Fusion Langen e.V."]
["Göbel Marcel",33054,"Göbel","Marcel","Herren","C","BC Fusion Langen e.V.","BC Fusion Langen e.V."]
["Siebert Björn",33055,"Siebert","Björn","Sen A","E","BC Fusion Langen e.V.","BC Fusion Langen e.V."]
["Heim Melanie",33056,"Heim","Melanie","Jun",0,"BC Fusion Langen e.V.","BC Fusion Langen e.V."]
["Wünning Steve",33057,"Wünning","Steve","Herren","D","BC Fusion Langen e.V.","BC Fusion Langen e.V."]
["Ziegler Andreas",33058,"Ziegler","Andreas","Herren","E","BC Fusion Langen e.V.","BC Fusion Langen e.V."]
["Doffin Rebecca",33061,"Doffin","Rebecca","Jun","D","BV 1987 Frankfurt","BV 1987 Frankfurt"]
["Jäger Lisa",33062,"Jäger","Lisa","Damen","E","Bowlingsportclub Bensheim 08 e.V","Bowlingsportclub Bensheim 08 e.V"]
["Hebenstreit Christina",33063,"Hebenstreit","Christina","Damen","E","Bowlingsportclub Bensheim 08 e.V","Bowlingsportclub Bensheim 08 e.V"]
["Kruse Lowell",33064,"Kruse","Lowell","Sen C","E","Bowlingsportclub Bensheim 08 e.V","Bowlingsportclub Bensheim 08 e.V"]
["Gaither James",33065,"Gaither","James","Herren","E","Bowlingsportclub Bensheim 08 e.V","Bowlingsportclub Bensheim 08 e.V"]
["Spangenberg Karsten",33066,"Spangenberg","Karsten","Herren","E","City Bowler Kassel","City Bowler Kassel e.V."]
["Derleth Michael",33067,"Derleth","Michael","Herren","D","BC 83 Kelsterbach","KBV Kelsterbach"]
["Bruckmann Heike",33068,"Bruckmann","Heike","Damen","F","BC 2000 Aschaffenburg","1. BV Aschaffenburg e.V."]
["Passrugger Karin",33069,"Passrugger","Karin","Sen A",0,"Mainhattan Bowlers Frankfurt","Mainhattan Bowlers Frankfurt"]
["Kaiser Dominik",33070,"Kaiser","Dominik","Herren","F","Mainhattan Bowlers Frankfurt","Mainhattan Bowlers Frankfurt"]
["Ries Tobias",33071,"Ries","Tobias","Jun","D","TSV 1860 Hanau","BV Hanau"]
["Hönicke Volker",33072,"Hönicke","Volker","Herren",null,"BC Darmstadt","1. BSV Darmstadt 1973"]
["Pape Daniel",33073,"Pape","Daniel","Herren",0,"Finale Kassel","BSV Kassel"]
["Helfrich Rainer",33075,"Helfrich","Rainer","Sen A","B","FTG-BC Frankfurt","FTG 1847 Frankfurt"]
["Polyannis Athanasios",33076,"Polyannis","Athanasios","Herren",0,"Condor Steinheim","BV Hanau"]
["Becker Aileen",33077,"Becker","Aileen","Damen",0,"BC 2000 Aschaffenburg","1. BV Aschaffenburg e.V."]
["Hargus Rodney",33078,"Hargus","Rodney","Herren","B","BC Wiesbaden","BC Wiesbaden e.V."]
["Schmalkalt Tobias",33079,"Schmalkalt","Tobias","Herren","D","Bowlingsportclub Bensheim 08 e.V","Bowlingsportclub Bensheim 08 e.V"]
["Kügler Claudia Stephanie",33080,"Kügler","Claudia Stephanie","Jun","F","BV Römer Frankfurt","BV Römer Frankfurt"]
["Jantke Dunja",33081,"Jantke","Dunja","Damen",0,"KBC Kelsterbach","KBV Kelsterbach"]
["Zentgraf Roland",33084,"Zentgraf","Roland","Herren","F","BC Langen 83","BSV Langen 83"]
["Bui Si Ham",33085,"Bui","Si Ham","Herren","F","BC Darmstadt","1. BSV Darmstadt 1973"]
["Hunkel Viktoria",33086,"Hunkel","Viktoria","Jug B",0,"Mainhattan Bowlers Frankfurt","Mainhattan Bowlers Frankfurt"]
["Herbig Andreas",33088,"Herbig","Andreas","Herren","E","BC Darmstadt","1. BSV Darmstadt 1973"]
["Hüllenhütter Peter",33089,"Hüllenhütter","Peter","Sen B",null,"BC Wiesbaden","BC Wiesbaden e.V."]
["Nessel Gerald",33090,"Nessel","Gerald","Sen B","C","BC 83 Kelsterbach","KBV Kelsterbach"]
["Gallo Adrian",33092,"Gallo","Adrian","Jug A",null,"Phönix Frankfurt","BV 95 Phönix Frankfurt e.V."]
["Lindenau Tobias",33093,"Lindenau","Tobias","Jug B",null,"Phönix Frankfurt","BV 95 Phönix Frankfurt e.V."]
["Spies Richard",33094,"Spies","Richard","Herren",0,"KBC Kelsterbach","KBV Kelsterbach"]
["Wolff Svenja",33095,"Wolff","Svenja","Jun",0,"Citystrikers","BC Citystrikers"]
["Winkelmann Marco",33096,"Winkelmann","Marco","Herren","A","BC 83 Kelsterbach","KBV Kelsterbach"]
["Schenke Oliver",33097,"Schenke","Oliver","Herren",0,"KBC Kelsterbach","KBV Kelsterbach"]
["Grünheid Malte",33098,"Grünheid","Malte","Herren",0,"Condor Steinheim","BV Hanau"]
["Roß Nicole",33099,"Roß","Nicole","Jun",0,"Condor Steinheim","BV Hanau"]
["Haupt Johannes",33101,"Haupt","Johannes","Jun",0,"KBC Kelsterbach","KBV Kelsterbach"]
["Gaither Janette",33102,"Gaither","Janette","Damen",0,"Bowlingsportclub Bensheim 08 e.V","Bowlingsportclub Bensheim 08 e.V"]
["Smith Wyatt",33104,"Smith","Wyatt","Herren",0,"TSV 1860 Hanau","BV Hanau"]
["Shaghaghikandvani Fakhraddin",33105,"Shaghaghikandvani","Fakhraddin","Sen A",0,"BC Fusion Langen e.V.","BC Fusion Langen e.V."]
["Geck Maurice",33106,"Geck","Maurice","Jun",0,"AAN Schwanheim","KBVS Schwanheim"]
["Kmiecik Marius",33108,"Kmiecik","Marius","Herren",0,"TSV 1860 Hanau","BV Hanau"]
["Mayer Ursula",33109,"Mayer","Ursula","Sen B",0,"TSV 1860 Hanau","BV Hanau"]
["Suchy Nikolai",33110,"Suchy","Nikolai","Herren",0,"BC 83 Kelsterbach","KBV Kelsterbach"]
["Rohn Selina",33111,"Rohn","Selina","Jug B",0,"BV Römer Frankfurt","BV Römer Frankfurt"]
["Hladky Carsten",33112,"Hladky","Carsten","Herren",0,"City Bowler Kassel","City Bowler Kassel e.V."]
["Omer Holger",33113,"Omer","Holger","Herren",0,"TSV 1860 Hanau","BV Hanau"]
["Hügin Carina",33114,"Hügin","Carina","Damen",0,"BC 2000 Aschaffenburg","1. BV Aschaffenburg e.V."]
["Farmer Joey",33116,"Farmer","Joey","Herren",0,"BSV Dieburg","1. BSV Dieburg e.V. 1992"]
["Nakuz Allen",33117,"Nakuz","Allen","Herren",0,"BC 2000 Aschaffenburg","1. BV Aschaffenburg e.V."]